Workbook

Sheet Титульний
G1: Додаток 1 до Інструкції зі складання звітності про роботу слідчих (підпункт 1 пункту 2 розділу I)
A2: ЗВІТНІСТЬ
A4: ПРО РОБОТУ
A5: ПРО РОБОТУ СЛІДЧИХ ОРГАНІВ ПРОКУРАТУРИ
A6: (без військових прокуратур)
A7: за 3 місяці 2019 року
A9: Подають: | E9: Терміни подання | F9: Форма № 1-СЛ
A10: Слідчі підрозділи регіональних прокуратур – керівнику регіональної прокуратури | E10: до 03 числа місяця, що настає за звітним періодом | F10: (квартальна)
A11: Керівники регіональних прокуратур – Генеральній прокуратурі України | E11: до 05 числа місяця, що настає за звітним періодом | F11: ЗАТВЕРДЖЕНО Наказ Генеральної прокуратури України, Міністерства внутрішніх справ України, Служби безпеки України, Міністерства фінансів України, Національного антикорупційного бюро України від 24 жовтня 2017 року № 298/875/593/866/200-О за погодженням з Держстатом
A12: Структурні підрозділи Генеральної прокуратури України, які здійснюють досудове розслідування, – підрозділу з питань організаційного забезпечення Єдиного реєстру досудових розслідувань та інформаційно-аналітичної роботи Генеральної прокуратури України | E12: до 03 числа місяця, що настає за звітним періодом
A14: Генеральна прокуратура України – Державній службі статистики України | E14: на 35 день, що настає за звітним періодом (півріччя, рік)
A19: Респондент:
A20: Найменування: | B20: прокуратура
A21: Місцезнаходження: | B21: 14000, вул. Князя Чорного 9, м. Чернігів
A23: (поштовий індекс, область, район, населений пункт, вулиця/провулок, площа тощо, № будинку/корпусу)

Sheet Таблиця 1
A2: Таблиця 1. Кількість кримінальних проваджень, у яких закінчено досудове розслідування (без повторних)
D3: рядок | E3: Кількість направлених до суду обвинувальних актів | G3: Кількість направлених до суду клопотань про звільнення від кримінальної відповідальності | I3: Кількість закритих кримінальних проваджень
E4: усього | F4: стосовно якої кількості осіб | G4: усього | H4: стосовно якої кількості осіб | I4: усього | J4: у тому числі за пунктами 1-3 частини першої статті 284 КПК України
A5: а | D5: б | E5: 1 | F5: 2 | G5: 3 | H5: 4 | I5: 5 | J5: 6
A6: Кримінальні правопорушення, вчинені державними службовцями, посада яких належить до категорії «А» | D6: 1
A7: з них: | B7: У сфері службової діяльності | D7: 2
B8: у тому числі: | C8: зловживання владою або службовим становищем (стаття 364 КК України) | D8: 3
C9: службова недбалість (стаття 367 КК України) | D9: 4
C10: злочини щодо неправомірної вигоди (статті 368-370 КК України) | D10: 5
C11: інші кримінальні правопорушення, вчинені у сфері службової діяльності | D11: 6
B12: Кримінальні правопорушення, не пов’язані із службовою діяльністю | D12: 7
B13: у тому числі: | C13: злочини проти життя та здоров’я особи (розділ ІІ КК України) | D13: 8
C14: злочини проти волі, честі та гідності особи (розділ ІІІ КК України) | D14: 9
C15: злочини проти безпеки руху та експлуатації транспорту (статті 276-292 КК України) | D15: 10
C16: інші кримінальні правопорушення, не пов’язані із службовою діяльністю | D16: 11
A17: Кримінальні правопорушення, вчинені державними службовцями, посада яких належить до категорії «Б» | D17: 12
A18: з них: | B18: У сфері службової діяльності | D18: 13
B19: у тому числі: | C19: зловживання владою або службовим становищем (стаття 364 КК України) | D19: 14
C20: службова недбалість (стаття 367 КК України) | D20: 15
C21: злочини щодо неправомірної вигоди (статті 368-370 КК України) | D21: 16
C22: інші кримінальні правопорушення, вчинені у сфері службової діяльності | D22: 17
B23: Кримінальні правопорушення, не пов’язані із службовою діяльністю | D23: 18
B24: у тому числі: | C24: злочини проти життя та здоров’я особи (розділ ІІ КК України) | D24: 19
C25: злочини проти волі, честі та гідності особи (розділ ІІІ КК України) | D25: 20
C26: злочини проти безпеки руху та експлуатації транспорту (статті 276-292 КК України) | D26: 21
C27: інші кримінальні правопорушення, не пов’язані із службовою діяльністю | D27: 22
A28: Кримінальні правопорушення, вчинені працівниками правоохоронних органів | D28: 23
A29: з них: | B29: Національної поліції України | D29: 24
B30: у т.ч.: | C30: Національної гвардії України | D30: 25
B31: прокуратури | D31: 26
B32: Служби безпеки України | D32: 27
B33: Державної фіскальної служби України | D33: 28
B34: у т.ч.: | C34: митної служби | D34: 29
B35: органів і установ Державної кримінально-виконавчої служби України | D35: 30
B36: Державної фінансової інспекції України | D36: 31
B37: Державної рибної охорони України | D37: 32
B38: Державної лісової охорони України | D38: 33
B39: Військової служби правопорядку у Збройних Силах України | D39: 34
B40: Державної прикордонної служби України | D40: 35
B41: працівниками інших органів, що здійснюють правозастосовні або правоохоронні функції | D41: 36

Sheet Таб 1
A1: а | D1: б | E1: 1 | F1: 2 | G1: 3 | H1: 4 | I1: 5 | J1: 6
A2: з них: | B2: У сфері службової діяльності | D2: 37
B3: у тому числі: | C3: зловживання владою або службовим становищем (стаття 364 КК України) | D3: 38
C4: перевищення влади або службових повноважень (стаття 365 КК України) | D4: 39
C5: службова недбалість (стаття 367 КК України) | D5: 40
C6: злочини щодо неправомірної вигоди (статті 368-370 КК України) | D6: 41
C7: інші кримінальні правопорушення, вчинені у сфері службової діяльності | D7: 42
B8: Кримінальні правопорушення, не пов’язані із службовою діяльністю | D8: 43
B9: у тому числі: | C9: злочини проти життя та здоров’я особи (розділ ІІ КК України) | D9: 44
C10: злочини проти волі, честі та гідності особи (розділ ІІІ КК України) | D10: 45
C11: злочини проти безпеки руху та експ. транспорту (статті 276-292 КК України) | D11: 46
C12: інші кримінальні правопорушення, не пов’язані із службовою діяльністю | D12: 47
A13: Кримінальні правопорушення, вчинені суддями | D13: 48
A14: з них: | B14: У сфері здійснення правосуддя | D14: 49
B15: у тому числі: | C15: постановлення завідомо неправосудного вироку, рішення або ухвали (стаття 375 КК України) | D15: 50
C16: злочини щодо неправомірної вигоди (статті 368-370 КК України) | D16: 51
C17: інші кримінальні правопорушення, вчинені у сфері службової діяльності щодо здійснення правосуддя | D17: 52
B18: Не пов’язані із службовою діяльністю щодо здійснення правосуддя | D18: 53
B19: у тому числі: | C19: злочини проти життя та здоров’я особи (розділ ІІ КК України) | D19: 54
C20: злочини проти волі, честі та гідності особи (розділ ІІІ КК України) | D20: 55
C21: злочини проти безпеки руху та експлуатації транспорту (статті 276-292 КК України) | D21: 56
C22: інші кримінальні правопорушення, не пов’язані із службовою діяльністю | D22: 57
A23: Інші кримінальні правопорушення | D23: 58
A24: УСЬОГО | D24: 59
A25: з них: | B25: про правопорушення, вчинені організованою групою та злочинною організацією | D25: 60 | G25: Х | H25: Х | J25: Х
B26: про корупційні правопорушення | D26: 61 | J26: Х
B27: про правопорушення, вчинені у сфері земельних правовідносин | D27: 62
B28: про правопорушення, вчинені у бюджетній системі | D28: 63
A29: Клопотання про застосування примусових заходів медичного характеру (не входить у рядок 59) | D29: 64 | G29: Х | H29: Х | I29: Х | J29: Х
A30: Контрольний рядок | D30: 65 | E30: =SUM('Таблиця 1'!E6:E41)+SUM('Таб 1'!E2:E29) -> 0 | F30: =SUM('Таблиця 1'!F6:F41)+SUM('Таб 1'!F2:F29) -> 0 | G30: =SUM('Таблиця 1'!G6:G41)+SUM('Таб 1'!G2:G24)+G26+G27+G28 -> 0 | H30: =SUM('Таблиця 1'!H6:H41)+SUM('Таб 1'!H2:H24)+H26+H27+H28 -> 0 | I30: =SUM('Таблиця 1'!I6:I41)+SUM('Таб 1'!I2:I28) -> 0 | J30: =SUM('Таблиця 1'!J6:J41)+SUM('Таб 1'!J2:J24)+J27+J28 -> 0

Sheet Таб 2-3
A1: Таблиця 2. Результати розслідування кримінальних проваджень
F2: рядок | G2: Усього
A3: а | F3: б | G3: 1
A4: Залишок незакінчених кримінальних проваджень на початок звітного періоду | F4: 1 | G4: 1
A5: Розпочато проваджень у звітному періоді (у тому числі виділених в окреме провадження згідно з частиною третьою статті 217 КПК України) | F5: 2
A6: Відновлено розслідування у раніше закритих кримінальних провадженнях | F6: 3
A7: Відновлено розслідування у раніше зупинених кримінальних провадженнях | F7: 4
A8: Надійшло проваджень від інших органів (у тому числі із судів), прийнятих до провадження | F8: 5
A9: Усього закінчено кримінальних проваджень у звітному періоді | F9: 6
A10: з них (з рядка 6): | B10: розслідування у яких розпочато у звітному періоді | F10: 7
B11: закінчено кримінальних проваджень у строки понад 2 місяці | F11: 8
B12: направлено до суду | D12: обвинувальних актів | F12: 9
D13: у тому числі: | E13: у яких здійснювалося спеціальне досудове розслідування | F13: 10
E14: з угодою про примирення | F14: 11
E15: з угодою про визнання винуватості | F15: 12
D16: клопотань про застосування примусових заходів медичного характеру | F16: 13
D17: клопотань про звільнення підозрюваного від кримінальної відповідальності | F17: 14
B18: закрито кримінальних проваджень із числа закінчених | F18: 15
B19: з них: | C19: закрито прокурором | F19: 16
A20: Направлено кримінальних проваджень за підслідністю | F20: 17
A21: Об’єднано кримінальних проваджень | F21: 18
A22: Кількість кримінальних проваджень, у яких зупинено досудове розслідування | F22: 19
A23: з них: | B23: за пунктом 1 частини першої статті 280 КПК України (у зв’язку з хворобою підозрюваного) | F23: 20
B24: за пунктом 2 частини першої статті 280 КПК України (у зв’язку з оголошенням у розшук підозрюваного) | F24: 21
B25: за пунктом 2¹ частини першої статті 280 КПК України (у зв’язку з відмовою слідчим суддею у задоволенні клопотання про здійснення спеціального досудового розслідування) | F25: 22
B26: за пунктом 3 частини першої статті 280 КПК України (для виконання процесуальних дій у межах міжнародного співробітництва) | F26: 23
A27: Залишок незакінчених кримінальних проваджень | F27: 24 | G27: 1
A28: з них: | C28: з повідомленням особи про підозру у вчиненні кримінального правопорушення | F28: 25
A29: Із залишку незакінчених кримінальних проваджень, за якими особу повідомлено про підозру у вчиненні кримінального правопорушення, зі строком розслідування (з рядка 25) | E29: понад 2 місяці, але не більше 6 місяців | F29: 26
E30: понад 6 місяців, але не більше 1 року | F30: 27
A31: Кількість осіб, які тримаються під вартою, за незакінченими кримінальними провадженнями | F31: 28
A32: у тому числі зі строком: | D32: понад шістдесят днів, але не більше 6 місяців | F32: 29
D33: понад 6 місяців, але не більше 1 року | F33: 30
A34: Кількість слідчих (станом на 01.01) | F34: 31
A35: Контрольний рядок | F35: 32 | G35: =SUM(G4:G34) -> 2
A36: Таблиця 3. Строки досудового розслідування
F37: рядок | G37: Закінчено кримінальних проваджень (без повторно закінчених)
A38: а | F38: б | G38: 1
A39: У С Ь О Г О | F39: 1
A40: у тому числі: | D40: у яких особі повідомлено про підозру у вчиненні злочину | F40: 2
A41: з них (з рядка 2): | D41: закінчено у строк понад 2 місяці з дня повідомлення особі про підозру | F41: 3
A42: закінчено у строк (з рядка 3): | D42: до 3 місяців | F42: 4
D43: від 3 до 6 місяців | F43: 5
D44: від 6 місяців до 1 року | F44: 6
A45: Контрольний рядок | F45: 7 | G45: =SUM(G39:G44) -> 0

Sheet Таб 4-6
A1: Таблиця 4. Підстави закриття кримінальних проваджень (без повторно закритих) | G1: Таблиця 6. Кількість кримінальних проваджень, у яких зупинено досудове розслідування (без повторно зупинених)
D2: рядок | J2: рядок
A3: а | D3: б | E3: 1 | G3: а | J3: б | K3: 1
A4: Закрито проваджень на підставі: | C4: пункту 1 частини першої статті 284 КПК України (за відсутністю події кримінального правопорушення) | D4: 1 | G4: Залишок кримінальних проваджень, у яких зупинено досудове розслідування, на кінець звітного періоду | J4: 1
C5: пункту 2 частини першої статті 284 КПК України (за відсутністю складу кримінального правопорушення) | D5: 2 | G5: з них: | H5: зупинено вперше в поточному році | J5: 2
C6: пункту 3 частини першої статті 284 КПК України (за невстановленням доказів винуватості особи) | D6: 3 | G6: у тому числі: | H6: Унаслідок захворювання підозрюваного (пункт 1 частини першої статті 280 КПК України) | J6: 3
C7: пункту 4 частини першої статті 284 КПК України (законом скасована кримінальна відповідальність) | D7: 4 | H7: з них: | I7: зупинено вперше в поточному році | J7: 4
C8: пункту 5 частини першої статті 284 КПК України (у зв’язку зі смертю підозрюваного, обвинуваченого) | D8: 5 | H8: Оголошено в розшук підозрюваного (пункт 2 частини першої статті 280 КПК України) | J8: 5
C9: пункту 6 частини першої статті 284 КПК України (за наявністю вироку по тому самому обвинуваченню) | D9: 6 | H9: з них: | I9: зупинено вперше в поточному році | J9: 6
C10: пункту 7 частини першої статті 284 КПК України (у разі відмови потерпілого від обвинувачення) | D10: 7 | H10: Слідчий суддя відмовив у задоволенні клопотання про здійснення спеціального досудового розслідування (пункт 2¹ частини першої статті 280 КПК України) | J10: 7
C11: пункту 8 частини першої статті 284 КПК України (у разі неотримання згоди держави, яка видала особу) | D11: 8 | H11: з них: | I11: зупинено вперше в поточному році | J11: 8
A12: Направлено до суду клопотань про звільнення підозрюваного, обвинуваченого від кримінальної відповідальності у зв’язку із закінченням строків давності (дані в таблицю 1 не включаються) | D12: 9 | H12: За необхідності виконання процесуальних дій у межах міжнародного співробітництва (пункт 3 частини першої статті 280 КПК України) | J12: 9
H13: з них: | I13: зупинено вперше в поточному році | J13: 10
A14: Контрольний рядок | D14: 10 | E14: =SUM(E4:E12) -> 0 | G14: Контрольний рядок | J14: 11 | K14: =SUM(K4:K13) -> 0
A15: Таблиця 5. Дані про виправданих осіб та осіб, стосовно яких кримінальне провадження закрито за реабілітуючими підставами (без повторних)
D16: рядок
A17: а | D17: б | E17: 1
A18: Кількість підозрюваних осіб, стосовно яких кримінальне провадження закрито прокурором на підставі пунктів 1-3 частини першої статті 284 КПК України | D18: 1 | E18: 1
A19: з них: | B19: трималися під вартою | D19: 2
B20: перебували під домашнім арештом | D20: 3
A21: Кількість обвинувачених та підозрюваних осіб, стосовно яких провадження закрито за реабілітуючими підставами (за кримінальними справами, розслідуваними до 20.11.2012) | D21: 4
A22: з них: | B22: трималися під вартою | D22: 5
A23: Кількість виправданих осіб та осіб, стосовно яких провадження закриті судом за реабілітуючими підставами | D23: 6
A24: з них: | B24: трималися під вартою | D24: 7
B25: перебували під домашнім арештом | D25: 8
A26: Кількість виправданих осіб та осіб, стосовно яких справи закриті судом за відсутністю події або складу злочину і за недоведеністю обвинувачення (за кримінальними справами, направленими до суду до 20.11.2012) | D26: 9
A27: з них: | B27: трималися під вартою | D27: 10
A28: Кількість осіб, стосовно яких кримінальні провадження закриті судом у зв’язку з відмовою прокурора від підтримання державного обвинувачення | D28: 11
A29: з них: | B29: трималися під вартою | D29: 12
B30: перебували під домашнім арештом | D30: 13
A31: Кількість осіб, стосовно яких кримінальні справи закриті судом у зв’язку з відмовою прокурора від підтримання державного обвинувачення (за кримінальними справами, направленими до суду до 20.11.2012) | D31: 14
A32: з них: | B32: трималися під вартою | D32: 15
A33: Кількість осіб, яких притягнуто до кримінальної відповідальності, але у зв’язку із зміною законодавства (декриміналізацією) провадження стосовно них закриті на стадії розслідування за відсутністю складу злочину | D33: 16
A34: з них: | B34: трималися під вартою | D34: 17
A35: Кількість осіб, стосовно яких провадження закриті судом у зв’язку із зміною законодавства (декриміналізацією) за відсутністю складу злочину | D35: 18
A36: з них: | B36: трималися під вартою | D36: 19
A37: Контрольний рядок | D37: 20 | E37: =SUM(E18:E36) -> 1

Sheet Таб 7-9
A1: Таблиця 7. Кількість затриманих осіб як підозрюваних, обрання запобіжного заходу | K1: Таблиця 9. Забезпечення відшкодування збитків за закінченими кримінальними провадженнями (за обвинувальними актами, клопотаннями, постановами про закриття провадження на підставі пункту 5 частини першої статті 284 КПК України)
H2: рядок | N2: рядок | O2: Установлено збитків на суму (у тис. грн.) | P2: Відшкодовано збитків на суму (у тис. грн.) | Q2: Накладено арешт на майно на суму (у тис. грн.) | R2: У тому числі вилучено грошей та цінностей (для забезпечення відшкодування збитків) на суму (у тис. грн) | S2: Сума, на яку пред’явлено позови ( у тис. грн.)
A3: а | H3: б | I3: 1
A4: Затримано осіб у порядку, передбаченому статтями 207, 208 КПК України | H4: 1 | K4: а | N4: б | O4: 1 | P4: 2 | Q4: 3 | R4: 4 | S4: 5
A5: Усього звільнено осіб | H5: 2 | K5: УСЬОГО | N5: 1
A6: у тому числі: | B6: звільнено осіб слідчим (прокурором, судом) без застосування запобіжного заходу у вигляді тримання під вартою | H6: 3 | K6: з них: | L6: інтересам держави та територіальних громад | N6: 2
B7: з них: | C7: за непідтвердженням підозри у вчиненні злочину | H7: 4 | L7: про земельні правовідносини | N7: 3
C8: у зв’язку із закінченням установленого законом строку затримання | H8: 5 | K8: Контрольний рядок | N8: 4 | O8: =SUM(O5:O7) -> 0 | P8: =SUM(P5:P7) -> 0 | Q8: =SUM(Q5:Q7) -> 0 | R8: =SUM(R5:R7) -> 0 | S8: =SUM(S5:S7) -> 0
C9: у зв’язку із внесенням клопотань слідчими про обрання більш м’яких запобіжних заходів (застави, домашнього арешту тощо) | H9: 6
B10: у зв’язку з відмовою прокурора підтримати клопотання про застосування запобіжного заходу у вигляді тримання під вартою | H10: 7
B11: через відмову суду в обранні запобіжного заходу у вигляді тримання під вартою | H11: 8
B12: з них: | C12: у зв’язку з обранням інших запобіжних заходів: | E12: домашнього арешту | H12: 9
E13: застави | H13: 10
E14: особистої поруки | H14: 11
E15: особистого зобов’язання | H15: 12
B16: у зв’язку із скасуванням апеляційним судом постанови суду про тримання під вартою | H16: 13
A17: Контрольний рядок | H17: 14 | I17: =SUM(I4:I16) -> 0
A18: Таблиця 8. Кількість повернутих судом кримінальних проваджень, обвинувальних актів, клопотань прокурору та результати їх розслідування
D20: рядок | E20: Повернуто проваджень, обвинувальних актів, клопотань, у тому числі:
E21: обвинувальних актів (пункт 3 частини третьої статті 314 КПК України) | F21: клопотань про застосування примусових заходів медичного характеру (пункт 3 частини третьої статті 314 КПК України) | G21: клопотань про звільнення особи від кримінальної відповідальності (частина четверта статті 288 КПК України) | H21: проваджень (пункт 1 частини третьої статті 314, пункт 2 частини другої статті 407 КПК України)
A24: а | D24: б | E24: 1 | F24: 2 | G24: 3 | H24: 4
A25: Усього надійшло із судів прокурору | D25: 1
A26: з них: | B26: направлено до суду в звітному періоді без проведення досудового розслідування | D26: 2
A27: Перебувало у слідчого в провадженні у звітному періоді | D27: 3
A28: з них (з рядка 3): | B28: направлено до суду обвинувальних актів | D28: 4
B29: закрито | D29: 5
B30: у т.ч.: | C30: за пунктами 1-3 частини першої статті 284 КПК України | D30: 6
B31: направлено до суду клопотань про звільнення від кримінальної відповідальності | D31: 7
B32: направлено до суду клопотань про застосування примусових заходів медичного характеру | D32: 8
A33: 3упинено проваджень | D33: 9
A34: Направлено проваджень за підслідністю | D34: 10
A35: Залишок незакінчених кримінальних проваджень | D35: 11
A36: Контрольний рядок | D36: 12 | E36: =SUM(E25:E35) -> 0 | F36: =SUM(F25:F35) -> 0 | G36: =SUM(G25:G35) -> 0 | H36: =SUM(H25:H35) -> 0

Sheet Таб 10-11
A1: Таблиця 10. Кримінальні провадження про злочини, вчинені працівниками правоохоронних органів, щодо застосування катувань та іншого жорстокого поводження (без повторних) | M1: Таблиця 11. Кількість повернутих справ судом для проведення додаткового розслідування відповідно до пункту 12 Перехідних положень КПК України
D3: рядок | E3: Про катування та інше жорстоке поводження з особами | F3: З них за злочинами, передбаченими статтями КК України: | L3: З графи 1 | T3: рядок | U3: Всього
F4: стаття 127 | G4: стаття 364 | H4: стаття 365 | I4: стаття 367 | J4: стаття 373 | K4: за іншими статтями КК України | L4: зі смертельними наслідками | M4: а | T4: б | U4: 1
A5: a | D5: б | E5: 1 | F5: 2 | G5: 3 | H5: 4 | I5: 5 | J5: 6 | K5: 7 | L5: 8 | M5: Повернуто справ судом для проведення додаткового розслідування | T5: 1
A6: Розслідувалось кримінальних проваджень | D6: 1 | M6: у тому числі: | N6: направлено до суду обвинувальних актів | T6: 2
A7: у тому числі стосовно працівників: | B7: Національної поліції України | D7: 2 | N7: з них: | O7: з угодами про примирення | T7: 3
B8: з них: | C8: Національної гвардії України | D8: 3 | O8: з угодами про визнання винуватості | T8: 4
B9: Державної фіскальної служби України | D9: 4 | N9: закрито | T9: 5
B10: Служби безпеки України | D10: 5 | N10: з них: | O10: за пунктами 1-3 частини першої статті 284 КПК України | T10: 6
B11: Державної кримінально-виконавчої служби України | D11: 6 | N11: направлено до суду клопотань про звільнення від кримінальної відповідальності | T11: 7
A12: З них: розпочатих у поточному році | D12: 7 | N12: направлено за підслідністю | T12: 8
A13: у тому числі стосовно працівників: | B13: Національної поліції України | D13: 8 | M13: Контрольний рядок | T13: 9 | U13: =SUM(U5:U12) -> 0
B14: з них: | C14: Національної гвардії України | D14: 9
B15: Державної фіскальної служби України | D15: 10 | M15: Прокурор області | R15: Комашко В.В. (П.І.Б.) | T15: ________________ (підпис)
B16: Служби безпеки України | D16: 11
B17: Державної кримінально-виконавчої служби України | D17: 12 | M17: Начальник слідчого відділу | R17: Шкільнюк О.М. (П.І.Б.) | T17: ________________ (підпис)
A18: Направлено до суду обвинувальних актів | D18: 13
A19: у тому числі стосовно працівників: | B19: Національної поліції України | D19: 14 | M19: Виконавець | R19: (П.І.Б.) | T19: ________________ (підпис)
B20: з них: | C20: Національної гвардії України | D20: 15
B21: Державної фіскальної служби України | D21: 16 | M21: Телефон: факс: електронна пошта:
B22: Служби безпеки України | D22: 17 | M22: Звіт складено в примірнику
B23: Державної кримінально-виконавчої служби України | D23: 18 | M23: Примірник № 1 ______________________________
A24: Кількість осіб, стосовно яких обвинувальні акти направлені до суду | D24: 19 | M24: Примірник № 2 ______________________________ Вихідний № _____________ від “_____” __________ 20____ р.
A25: у тому числі стосовно працівників: | B25: Національної поліції України | D25: 20
B26: з них: | C26: Національної гвардії України | D26: 21
B27: Державної фіскальної служби України | D27: 22
B28: Служби безпеки України | D28: 23
B29: Державної кримінально-виконавчої служби України | D29: 24
A30: Направлено до суду клопотань про звільнення підозрюваного від кримінальної відповідальності | D30: 25 | G30: х
A31: Закрито кримінальних проваджень | D31: 26
A32: Направлено за підслідністю | D32: 27
A33: Контрольний рядок | D33: 28 | E33: =SUM(E6:E32) -> 0 | F33: =SUM(F6:F32) -> 0 | G33: 0 | H33: 0 | I33: 0 | J33: 0 | K33: 0 | L33: 0

Sheet Довідки (hidden)
A1: Генеральна прокуратура України
A3: Управління організаційного забезпечення Єдиного реєстру досудових розслідувань та інформаційно - аналітичної роботи
A7: статистичної інформації органів досудового розслідування (прокуратура)
A9: за 12 місяців 2017 року
A12: по Україні
A13: (у розрізі областей)
A15: =D20 -> 2017
A16: Таблиця 1. Результати розслідування кримінальних правопорушень
A18: Код | B18: Прокуратура | C18: Знаходилось кримінальних проваджень | F18: з них:
F19: Залишок | I19: Питома вага | K19: Розпочато | N19: Питома вага | P19: Відновленно раніше закритих | S19: Питома вага | U19: Відновленно зупинені | X19: Питома вага | Z19: Надійшло від інших органів | AC19: Питома вага
C20: 2016 | D20: 2017 | E20: % | F20: =$C$20 -> 2016 | G20: =$D$20 -> 2017 | H20: % | I20: =$C$20 -> 2016 | J20: =$D$20 -> 2017 | K20: =$C$20 -> 2016 | L20: =$D$20 -> 2017 | M20: % | N20: =$C$20 -> 2016 | O20: =$D$20 -> 2017 | P20: =$C$20 -> 2016 | Q20: =$D$20 -> 2017 | R20: % | S20: =$C$20 -> 2016 | T20: =$D$20 -> 2017 | U20: =$C$20 -> 2016 | V20: =$D$20 -> 2017 | W20: % | X20: =$C$20 -> 2016 | Y20: =$D$20 -> 2017 | Z20: =$C$20 -> 2016 | AA20: =$D$20 -> 2017 | AB20: % | AC20: =$C$20 -> 2016 | AD20: =$D$20 -> 2017
A21: 1 | B21: АР Крим | C21: 315 | D21: 447 | E21: =IF(C21=0,0,IF(D21=0,"-100,0",IF(D21*100/C21<200,ROUND(D21*100/C21-100,1),ROUND(D21/C21,1)&" р"))) -> 41.9 | F21: 23 | G21: 68 | H21: =IF(F21=0,0,IF(G21=0,"-100,0",IF(G21*100/F21<200,ROUND(G21*100/F21-100,1),ROUND(G21/F21,1)&" р"))) -> 3 р | I21: =IF($C21=0,0,F21*100/$C21) -> 7.301587302 | J21: =IF($D21=0,0,G21*100/$D21) -> 15.21252796 | K21: 13 | L21: 57 | M21: =IF(K21=0,0,IF(L21=0,"-100,0",IF(L21*100/K21<200,ROUND(L21*100/K21-100,1),ROUND(L21/K21,1)&" р"))) -> 4,4 р | N21: =IF($C21=0,0,K21*100/$C21) -> 4.126984127 | O21: =IF($D21=0,0,L21*100/$D21) -> 12.75167785 | P21: 13 | Q21: 55 | R21: =IF(P21=0,0,IF(Q21=0,"-100,0",IF(Q21*100/P21<200,ROUND(Q21*100/P21-100,1),ROUND(Q21/P21,1)&" р"))) -> 4,2 р | S21: =IF($C21=0,0,P21*100/$C21) -> 4.126984127 | T21: =IF($D21=0,0,Q21*100/$D21) -> 12.30425056 | U21: 13 | V21: 57 | W21: =IF(U21=0,0,IF(V21=0,"-100,0",IF(V21*100/U21<200,ROUND(V21*100/U21-100,1),ROUND(V21/U21,1)&" р"))) -> 4,4 р | X21: =IF($C21=0,0,U21*100/$C21) -> 4.126984127 | Y21: =IF($D21=0,0,V21*100/$D21) -> 12.75167785 | Z21: 13 | AA21: 55 | AB21: =IF(Z21=0,0,IF(AA21=0,"-100,0",IF(AA21*100/Z21<200,ROUND(AA21*100/Z21-100,1),ROUND(AA21/Z21,1)&" р"))) -> 4,2 р | AC21: =IF($C21=0,0,Z21*100/$C21) -> 4.126984127 | AD21: =IF($D21=0,0,AA21*100/$D21) -> 12.30425056
A22: 2 | B22: Вінницької області | C22: 561 | D22: 558 | E22: -0.5 | F22: 327 | G22: 251 | H22: -23.2 | I22: =IF($C22=0,0,F22*100/$C22) -> 58.28877005 | J22: =IF($D22=0,0,G22*100/$D22) -> 44.98207885 | K22: 12 | L22: 4 | M22: =IF(K22=0,0,IF(L22=0,"-100,0",IF(L22*100/K22<200,ROUND(L22*100/K22-100,1),ROUND(L22/K22,1)&" р"))) -> -66.7 | N22: =IF($C22=0,0,K22*100/$C22) -> 2.139037433 | O22: =IF($D22=0,0,L22*100/$D22) -> 0.7168458781 | P22: 27 | Q22: 30 | R22: 11.1 | S22: =IF($C22=0,0,P22*100/$C22) -> 4.812834225 | T22: =IF($D22=0,0,Q22*100/$D22) -> 5.376344086 | U22: 12 | V22: 4 | W22: =IF(U22=0,0,IF(V22=0,"-100,0",IF(V22*100/U22<200,ROUND(V22*100/U22-100,1),ROUND(V22/U22,1)&" р"))) -> -66.7 | X22: =IF($C22=0,0,U22*100/$C22) -> 2.139037433 | Y22: =IF($D22=0,0,V22*100/$D22) -> 0.7168458781 | Z22: 27 | AA22: 30 | AB22: 11.1 | AC22: =IF($C22=0,0,Z22*100/$C22) -> 4.812834225 | AD22: =IF($D22=0,0,AA22*100/$D22) -> 5.376344086
A23: 3 | B23: Волинської області | C23: 419 | D23: 623 | E23: 48.7 | F23: 229 | G23: 294 | H23: 28.4 | I23: 54.65393795 | J23: 47.19101124 | K23: 8 | L23: 8 | M23: 0 | N23: 1.909307876 | O23: 1.284109149 | P23: 31 | Q23: 36 | R23: 16.1 | S23: 7.398568019 | T23: 5.778491172 | U23: 8 | V23: 8 | W23: 0 | X23: 1.909307876 | Y23: 1.284109149 | Z23: 31 | AA23: 36 | AB23: 16.1 | AC23: 7.398568019 | AD23: 5.778491172
A24: 4 | B24: Дніпропетровської області | C24: 1573 | D24: 2425 | E24: 54.2 | F24: 1060 | G24: 1194 | H24: 12.6 | I24: 67.3871583 | J24: 49.2371134 | K24: 17 | L24: 30 | M24: 76.5 | N24: 1.080737444 | O24: 1.237113402 | P24: 77 | Q24: 132 | R24: 71.4 | S24: 4.895104895 | T24: 5.443298969 | U24: 17 | V24: 30 | W24: 76.5 | X24: 1.080737444 | Y24: 1.237113402 | Z24: 77 | AA24: 132 | AB24: 71.4 | AC24: 4.895104895 | AD24: 5.443298969
A25: 5 | B25: Донецької області | C25: 1715 | D25: 1583 | E25: -7.7 | F25: 854 | G25: 861 | H25: 0.8 | I25: 49.79591837 | J25: 54.39039798 | K25: 39 | L25: 35 | M25: -10.3 | N25: 2.274052478 | O25: 2.210991788 | P25: 93 | Q25: 114 | R25: 22.6 | S25: 5.422740525 | T25: 7.201516109 | U25: 39 | V25: 35 | W25: -10.3 | X25: 2.274052478 | Y25: 2.210991788 | Z25: 93 | AA25: 114 | AB25: 22.6 | AC25: 5.422740525 | AD25: 7.201516109
A26: 6 | B26: Житомирської області | C26: 312 | D26: 274 | E26: -12.2 | F26: 175 | G26: 134 | H26: -23.4 | I26: 56.08974359 | J26: 48.90510949 | K26: 1 | L26: 4 | M26: 4 р | N26: 0.3205128205 | O26: 1.459854015 | P26: 17 | Q26: 24 | R26: 41.2 | S26: 5.448717949 | T26: 8.759124088 | U26: 1 | V26: 4 | W26: 4 р | X26: 0.3205128205 | Y26: 1.459854015 | Z26: 17 | AA26: 24 | AB26: 41.2 | AC26: 5.448717949 | AD26: 8.759124088
A27: 7 | B27: Закарпатської області | C27: 466 | D27: 623 | E27: 33.7 | F27: 286 | G27: 191 | H27: -33.2 | I27: 61.37339056 | J27: 30.65810594 | K27: 1 | L27: 3 | M27: 3 р | N27: 0.2145922747 | O27: 0.481540931 | P27: 37 | Q27: 39 | R27: 5.4 | S27: 7.939914163 | T27: 6.260032103 | U27: 1 | V27: 3 | W27: 3 р | X27: 0.2145922747 | Y27: 0.481540931 | Z27: 37 | AA27: 39 | AB27: 5.4 | AC27: 7.939914163 | AD27: 6.260032103
A28: 8 | B28: Запорізької області | C28: 683 | D28: 1123 | E28: 64.4 | F28: 392 | G28: 677 | H28: 72.7 | I28: 57.39385066 | J28: 60.28495102 | K28: 13 | L28: 21 | M28: 61.5 | N28: 1.903367496 | O28: 1.869991095 | P28: 29 | Q28: 76 | R28: 2,6 р | S28: 4.245973646 | T28: 6.767586821 | U28: 13 | V28: 21 | W28: 61.5 | X28: 1.903367496 | Y28: 1.869991095 | Z28: 29 | AA28: 76 | AB28: 2,6 р | AC28: 4.245973646 | AD28: 6.767586821
A29: 9 | B29: Івано-Франківської області | C29: 280 | D29: 223 | E29: -20.4 | F29: 126 | G29: 111 | H29: -11.9 | I29: 45 | J29: 49.77578475 | K29: 3 | L29: 2 | M29: -33.3 | N29: 1.071428571 | O29: 0.8968609865 | P29: 30 | Q29: 25 | R29: -16.7 | S29: 10.71428571 | T29: 11.21076233 | U29: 3 | V29: 2 | W29: -33.3 | X29: 1.071428571 | Y29: 0.8968609865 | Z29: 30 | AA29: 25 | AB29: -16.7 | AC29: 10.71428571 | AD29: 11.21076233
A30: 10 | B30: Київської області | C30: 1017 | D30: 1086 | E30: 6.8 | F30: 402 | G30: 304 | H30: -24.4 | I30: 39.5280236 | J30: 27.99263352 | K30: 23 | L30: 14 | M30: -39.1 | N30: 2.261553589 | O30: 1.289134438 | P30: 56 | Q30: 52 | R30: -7.1 | S30: 5.506391347 | T30: 4.788213628 | U30: 23 | V30: 14 | W30: -39.1 | X30: 2.261553589 | Y30: 1.289134438 | Z30: 56 | AA30: 52 | AB30: -7.1 | AC30: 5.506391347 | AD30: 4.788213628
A31: 11 | B31: міста Києва | C31: 2678 | D31: 2558 | E31: -4.5 | F31: 1675 | G31: 1318 | H31: -21.3 | I31: 62.54667662 | J31: 51.52462862 | K31: 34 | L31: 33 | M31: -2.9 | N31: 1.269604182 | O31: 1.290070367 | P31: 77 | Q31: 103 | R31: 33.8 | S31: 2.87528006 | T31: 4.026583268 | U31: 34 | V31: 33 | W31: -2.9 | X31: 1.269604182 | Y31: 1.290070367 | Z31: 77 | AA31: 103 | AB31: 33.8 | AC31: 2.87528006 | AD31: 4.026583268
A32: 12 | B32: Кіровоградської області | C32: 464 | D32: 466 | E32: 0.4 | F32: 272 | G32: 180 | H32: -33.8 | I32: 58.62068966 | J32: 38.62660944 | K32: 9 | L32: 9 | M32: 0 | N32: 1.939655172 | O32: 1.931330472 | P32: 15 | Q32: 19 | R32: 26.7 | S32: 3.232758621 | T32: 4.077253219 | U32: 9 | V32: 9 | W32: 0 | X32: 1.939655172 | Y32: 1.931330472 | Z32: 15 | AA32: 19 | AB32: 26.7 | AC32: 3.232758621 | AD32: 4.077253219
A33: 13 | B33: Луганської області | C33: 447 | D33: 521 | E33: 16.6 | F33: 230 | G33: 239 | H33: 3.9 | I33: 51.4541387 | J33: 45.87332054 | K33: 1 | L33: 2 | M33: 2 р | N33: 0.2237136465 | O33: 0.3838771593 | P33: 40 | Q33: 49 | R33: 22.5 | S33: 8.948545861 | T33: 9.404990403 | U33: 1 | V33: 2 | W33: 2 р | X33: 0.2237136465 | Y33: 0.3838771593 | Z33: 40 | AA33: 49 | AB33: 22.5 | AC33: 8.948545861 | AD33: 9.404990403
A34: 14 | B34: Львівської області | C34: 536 | D34: 658 | E34: 22.8 | F34: 362 | G34: 392 | H34: 8.3 | I34: 67.53731343 | J34: 59.57446809 | K34: 11 | L34: 10 | M34: -9.1 | N34: 2.052238806 | O34: 1.519756839 | P34: 58 | Q34: 71 | R34: 22.4 | S34: 10.82089552 | T34: 10.79027356 | U34: 11 | V34: 10 | W34: -9.1 | X34: 2.052238806 | Y34: 1.519756839 | Z34: 58 | AA34: 71 | AB34: 22.4 | AC34: 10.82089552 | AD34: 10.79027356
A35: 15 | B35: Миколаївської області | C35: 645 | D35: 571 | E35: -11.5 | F35: 368 | G35: 295 | H35: -19.8 | I35: 57.05426357 | J35: 51.66374781 | K35: 10 | L35: 10 | M35: 0 | N35: 1.550387597 | O35: 1.751313485 | P35: 23 | Q35: 32 | R35: 39.1 | S35: 3.565891473 | T35: 5.604203152 | U35: 10 | V35: 10 | W35: 0 | X35: 1.550387597 | Y35: 1.751313485 | Z35: 23 | AA35: 32 | AB35: 39.1 | AC35: 3.565891473 | AD35: 5.604203152
A36: 16 | B36: Одеської області | C36: 1489 | D36: 2226 | E36: 49.5 | F36: 898 | G36: 1039 | H36: 15.7 | I36: 60.30893217 | J36: 46.67565139 | K36: 34 | L36: 33 | M36: -2.9 | N36: 2.283411686 | O36: 1.482479784 | P36: 74 | Q36: 78 | R36: 5.4 | S36: 4.969778375 | T36: 3.504043127 | U36: 34 | V36: 33 | W36: -2.9 | X36: 2.283411686 | Y36: 1.482479784 | Z36: 74 | AA36: 78 | AB36: 5.4 | AC36: 4.969778375 | AD36: 3.504043127
A37: 17 | B37: Полтавської області | C37: 459 | D37: 477 | E37: 3.9 | F37: 344 | G37: 277 | H37: -19.5 | I37: 74.94553377 | J37: 58.07127883 | K37: 6 | L37: 8 | M37: 33.3 | N37: 1.307189542 | O37: 1.677148847 | P37: 27 | Q37: 38 | R37: 40.7 | S37: 5.882352941 | T37: 7.966457023 | U37: 6 | V37: 8 | W37: 33.3 | X37: 1.307189542 | Y37: 1.677148847 | Z37: 27 | AA37: 38 | AB37: 40.7 | AC37: 5.882352941 | AD37: 7.966457023
A38: 18 | B38: Рівненської області | C38: 348 | D38: 326 | E38: -6.3 | F38: 213 | G38: 222 | H38: 4.2 | I38: 61.20689655 | J38: 68.09815951 | K38: 5 | L38: 3 | M38: -40 | N38: 1.436781609 | O38: 0.9202453988 | P38: 21 | Q38: 22 | R38: 4.8 | S38: 6.034482759 | T38: 6.748466258 | U38: 5 | V38: 3 | W38: -40 | X38: 1.436781609 | Y38: 0.9202453988 | Z38: 21 | AA38: 22 | AB38: 4.8 | AC38: 6.034482759 | AD38: 6.748466258
A39: 19 | B39: Сумської області | C39: 467 | D39: 548 | E39: 17.3 | F39: 264 | G39: 296 | H39: 12.1 | I39: 56.53104925 | J39: 54.01459854 | K39: 8 | L39: 11 | M39: 37.5 | N39: 1.713062099 | O39: 2.00729927 | P39: 35 | Q39: 46 | R39: 31.4 | S39: 7.494646681 | T39: 8.394160584 | U39: 8 | V39: 11 | W39: 37.5 | X39: 1.713062099 | Y39: 2.00729927 | Z39: 35 | AA39: 46 | AB39: 31.4 | AC39: 7.494646681 | AD39: 8.394160584
A40: 20 | B40: Тернопільської області | C40: 296 | D40: 428 | E40: 44.6 | F40: 195 | G40: 253 | H40: 29.7 | I40: 65.87837838 | J40: 59.11214953 | K40: 5 | L40: 1 | M40: -80 | N40: 1.689189189 | O40: 0.2336448598 | P40: 13 | Q40: 20 | R40: 53.8 | S40: 4.391891892 | T40: 4.672897196 | U40: 5 | V40: 1 | W40: -80 | X40: 1.689189189 | Y40: 0.2336448598 | Z40: 13 | AA40: 20 | AB40: 53.8 | AC40: 4.391891892 | AD40: 4.672897196
A41: 21 | B41: Харківської області | C41: 2104 | D41: 2143 | E41: 1.9 | F41: 1396 | G41: 1290 | H41: -7.6 | I41: 66.34980989 | J41: 60.19598693 | K41: 14 | L41: 22 | M41: 57.1 | N41: 0.6653992395 | O41: 1.026598227 | P41: 101 | Q41: 143 | R41: 41.6 | S41: 4.800380228 | T41: 6.672888474 | U41: 14 | V41: 22 | W41: 57.1 | X41: 0.6653992395 | Y41: 1.026598227 | Z41: 101 | AA41: 143 | AB41: 41.6 | AC41: 4.800380228 | AD41: 6.672888474
A42: 22 | B42: Херсонської області | C42: 475 | D42: 507 | E42: 6.7 | F42: 308 | G42: 305 | H42: -1 | I42: 64.84210526 | J42: 60.15779093 | K42: 7 | L42: 9 | M42: 28.6 | N42: 1.473684211 | O42: 1.775147929 | P42: 20 | Q42: 25 | R42: 25 | S42: 4.210526316 | T42: 4.930966469 | U42: 7 | V42: 9 | W42: 28.6 | X42: 1.473684211 | Y42: 1.775147929 | Z42: 20 | AA42: 25 | AB42: 25 | AC42: 4.210526316 | AD42: 4.930966469
A43: 23 | B43: Хмельницької області | C43: 260 | D43: 353 | E43: 35.8 | F43: 163 | G43: 164 | H43: 0.6 | I43: 62.69230769 | J43: 46.45892351 | K43: 7 | L43: 6 | M43: -14.3 | N43: 2.692307692 | O43: 1.699716714 | P43: 27 | Q43: 26 | R43: -3.7 | S43: 10.38461538 | T43: 7.365439093 | U43: 7 | V43: 6 | W43: -14.3 | X43: 2.692307692 | Y43: 1.699716714 | Z43: 27 | AA43: 26 | AB43: -3.7 | AC43: 10.38461538 | AD43: 7.365439093
A44: 24 | B44: Черкаської області | C44: 436 | D44: 407 | E44: -6.7 | F44: 316 | G44: 300 | H44: -5.1 | I44: 72.47706422 | J44: 73.71007371 | K44: 1 | L44: 4 | M44: 4 р | N44: 0.2293577982 | O44: 0.9828009828 | P44: 33 | Q44: 26 | R44: -21.2 | S44: 7.568807339 | T44: 6.388206388 | U44: 1 | V44: 4 | W44: 4 р | X44: 0.2293577982 | Y44: 0.9828009828 | Z44: 33 | AA44: 26 | AB44: -21.2 | AC44: 7.568807339 | AD44: 6.388206388
A45: 25 | B45: Чернівецької області | C45: 331 | D45: 385 | E45: =IF(C45=0,0,IF(D45=0,"-100,0",IF(D45*100/C45<200,ROUND(D45*100/C45-100,1),ROUND(D45/C45,1)&" р"))) -> 16.3 | F45: 165 | G45: 165 | H45: =IF(F45=0,0,IF(G45=0,"-100,0",IF(G45*100/F45<200,ROUND(G45*100/F45-100,1),ROUND(G45/F45,1)&" р"))) -> 0 | I45: 49.8489426 | J45: 42.85714286 | K45: 3 | L45: 3 | M45: =IF(K45=0,0,IF(L45=0,"-100,0",IF(L45*100/K45<200,ROUND(L45*100/K45-100,1),ROUND(L45/K45,1)&" р"))) -> 0 | N45: 0.9063444109 | O45: 0.7792207792 | P45: 24 | Q45: 24 | R45: =IF(P45=0,0,IF(Q45=0,"-100,0",IF(Q45*100/P45<200,ROUND(Q45*100/P45-100,1),ROUND(Q45/P45,1)&" р"))) -> 0 | S45: 7.250755287 | T45: 6.233766234 | U45: 3 | V45: 3 | W45: =IF(U45=0,0,IF(V45=0,"-100,0",IF(V45*100/U45<200,ROUND(V45*100/U45-100,1),ROUND(V45/U45,1)&" р"))) -> 0 | X45: 0.9063444109 | Y45: 0.7792207792 | Z45: 24 | AA45: 24 | AB45: =IF(Z45=0,0,IF(AA45=0,"-100,0",IF(AA45*100/Z45<200,ROUND(AA45*100/Z45-100,1),ROUND(AA45/Z45,1)&" р"))) -> 0 | AC45: 7.250755287 | AD45: 6.233766234
A46: 26 | B46: Чернігівської області | C46: 551 | D46: 501 | E46: -9.1 | F46: 368 | G46: 288 | H46: -21.7 | I46: 66.7876588 | J46: 57.48502994 | K46: 9 | L46: 2 | M46: -77.8 | N46: 1.633393829 | O46: 0.3992015968 | P46: 37 | Q46: 35 | R46: -5.4 | S46: 6.715063521 | T46: 6.986027944 | U46: 9 | V46: 2 | W46: =IF(U46=0,0,IF(V46=0,"-100,0",IF(V46*100/U46<200,ROUND(V46*100/U46-100,1),ROUND(V46/U46,1)&" р"))) -> -77.8 | X46: 1.633393829 | Y46: 0.3992015968 | Z46: 37 | AA46: 35 | AB46: =IF(Z46=0,0,IF(AA46=0,"-100,0",IF(AA46*100/Z46<200,ROUND(AA46*100/Z46-100,1),ROUND(AA46/Z46,1)&" р"))) -> -5.4 | AC46: 6.715063521 | AD46: 6.986027944
A47: 27 | B47: Усього (без ЦА) | C47: 19327 | D47: 22040 | E47: 14 | F47: 11411 | G47: 11108 | H47: -2.7 | I47: 59.04175506 | J47: 50.39927405 | K47: 294 | L47: 344 | M47: 17 | N47: 1.521187975 | O47: 1.560798548 | P47: 1035 | Q47: 1340 | R47: 29.5 | S47: 5.355202566 | T47: 6.079854809 | U47: 294 | V47: 344 | W47: 17 | X47: 1.521187975 | Y47: 1.560798548 | Z47: 1035 | AA47: 1340 | AB47: 29.5 | AC47: 5.355202566 | AD47: 6.079854809
A48: 28 | B48: Центральний апарат | C48: 2681 | D48: 3718 | E48: =IF(C48=0,0,IF(D48=0,"-100,0",IF(D48*100/C48<200,ROUND(D48*100/C48-100,1),ROUND(D48/C48,1)&" р"))) -> 38.7 | F48: 298 | G48: 478 | H48: =IF(F48=0,0,IF(G48=0,"-100,0",IF(G48*100/F48<200,ROUND(G48*100/F48-100,1),ROUND(G48/F48,1)&" р"))) -> 60.4 | I48: 11.1152555 | J48: 12.85637439 | K48: 158 | L48: 199 | M48: =IF(K48=0,0,IF(L48=0,"-100,0",IF(L48*100/K48<200,ROUND(L48*100/K48-100,1),ROUND(L48/K48,1)&" р"))) -> 25.9 | N48: 5.893323387 | O48: 5.352339968 | P48: 139 | Q48: 240 | R48: =IF(P48=0,0,IF(Q48=0,"-100,0",IF(Q48*100/P48<200,ROUND(Q48*100/P48-100,1),ROUND(Q48/P48,1)&" р"))) -> 72.7 | S48: 5.1846326 | T48: 6.455083378 | U48: 158 | V48: 199 | W48: =IF(U48=0,0,IF(V48=0,"-100,0",IF(V48*100/U48<200,ROUND(V48*100/U48-100,1),ROUND(V48/U48,1)&" р"))) -> 25.9 | X48: 5.893323387 | Y48: 5.352339968 | Z48: 139 | AA48: 240 | AB48: =IF(Z48=0,0,IF(AA48=0,"-100,0",IF(AA48*100/Z48<200,ROUND(AA48*100/Z48-100,1),ROUND(AA48/Z48,1)&" р"))) -> 72.7 | AC48: 5.1846326 | AD48: 6.455083378
A49: 29 | B49: №14 | C49: 0 | D49: 24 | G49: 2 | I49: 0 | J49: 8.333333333 | N49: 0 | O49: 0 | Q49: 2 | S49: 0 | T49: 8.333333333 | X49: 0 | Y49: 0 | AA49: 2 | AC49: 0 | AD49: 8.333333333
A50: 30 | B50: №17 | C50: 1314 | D50: 1369 | E50: =IF(C50=0,0,IF(D50=0,"-100,0",IF(D50*100/C50<200,ROUND(D50*100/C50-100,1),ROUND(D50/C50,1)&" р"))) -> 4.2 | F50: 178 | G50: 215 | H50: =IF(F50=0,0,IF(G50=0,"-100,0",IF(G50*100/F50<200,ROUND(G50*100/F50-100,1),ROUND(G50/F50,1)&" р"))) -> 20.8 | I50: 13.54642314 | J50: 15.70489408 | K50: 95 | L50: 53 | M50: =IF(K50=0,0,IF(L50=0,"-100,0",IF(L50*100/K50<200,ROUND(L50*100/K50-100,1),ROUND(L50/K50,1)&" р"))) -> -44.2 | N50: 7.229832572 | O50: 3.871439007 | P50: 65 | Q50: 72 | R50: =IF(P50=0,0,IF(Q50=0,"-100,0",IF(Q50*100/P50<200,ROUND(Q50*100/P50-100,1),ROUND(Q50/P50,1)&" р"))) -> 10.8 | S50: 4.946727549 | T50: 5.259313367 | U50: 95 | V50: 53 | W50: =IF(U50=0,0,IF(V50=0,"-100,0",IF(V50*100/U50<200,ROUND(V50*100/U50-100,1),ROUND(V50/U50,1)&" р"))) -> -44.2 | X50: 7.229832572 | Y50: 3.871439007 | Z50: 65 | AA50: 72 | AB50: =IF(Z50=0,0,IF(AA50=0,"-100,0",IF(AA50*100/Z50<200,ROUND(AA50*100/Z50-100,1),ROUND(AA50/Z50,1)&" р"))) -> 10.8 | AC50: 4.946727549 | AD50: 5.259313367
A51: 31 | B51: №26 | C51: 408 | D51: 473 | E51: =IF(C51=0,0,IF(D51=0,"-100,0",IF(D51*100/C51<200,ROUND(D51*100/C51-100,1),ROUND(D51/C51,1)&" р"))) -> 15.9 | F51: 18 | G51: 104 | H51: =IF(F51=0,0,IF(G51=0,"-100,0",IF(G51*100/F51<200,ROUND(G51*100/F51-100,1),ROUND(G51/F51,1)&" р"))) -> 5,8 р | I51: 4.411764706 | J51: 21.98731501 | K51: 16 | L51: 102 | M51: 6,4 р | N51: 3.921568627 | O51: 21.56448203 | P51: 18 | Q51: 102 | R51: 5,7 р | S51: 4.411764706 | T51: 21.56448203 | U51: 16 | V51: 102 | W51: 6,4 р | X51: 3.921568627 | Y51: 21.56448203 | Z51: 18 | AA51: 102 | AB51: 5,7 р | AC51: 4.411764706 | AD51: 21.56448203
A52: 32 | B52: №07 | C52: 41 | D52: 0 | E52: -100,0 | F52: 4 | H52: -100,0 | I52: 9.756097561 | J52: 0 | K52: 3 | M52: -100,0 | N52: 7.317073171 | O52: 0 | P52: 3 | R52: -100,0 | S52: 7.317073171 | T52: 0 | U52: 3 | W52: -100,0 | X52: 7.317073171 | Y52: 0 | Z52: 3 | AB52: -100,0 | AC52: 7.317073171 | AD52: 0
A53: 33 | B53: №07/1 | C53: 319 | D53: 623 | E53: 95.3 | F53: 37 | G53: 81 | H53: 2,2 р | I53: 11.59874608 | J53: 13.00160514 | K53: 21 | L53: 13 | M53: -38.1 | N53: 6.5830721 | O53: 2.086677368 | P53: 21 | Q53: 29 | R53: 38.1 | S53: 6.5830721 | T53: 4.654895666 | U53: 21 | V53: 13 | W53: -38.1 | X53: 6.5830721 | Y53: 2.086677368 | Z53: 21 | AA53: 29 | AB53: 38.1 | AC53: 6.5830721 | AD53: 4.654895666
A54: 34 | B54: №29 | C54: 27 | D54: 0 | E54: -100,0 | F54: 3 | H54: -100,0 | I54: 11.11111111 | J54: 0 | K54: 2 | M54: -100,0 | N54: 7.407407407 | O54: 0 | P54: 2 | R54: -100,0 | S54: 7.407407407 | T54: 0 | U54: 2 | W54: -100,0 | X54: 7.407407407 | Y54: 0 | Z54: 2 | AB54: -100,0 | AC54: 7.407407407 | AD54: 0
A55: 35 | B55: №29/1 | C55: 88 | D55: 33 | E55: -62.5 | F55: 31 | H55: -100,0 | I55: 35.22727273 | J55: 0 | K55: 7 | M55: -100,0 | N55: 7.954545455 | O55: 0 | P55: 8 | R55: -100,0 | S55: 9.090909091 | T55: 0 | U55: 7 | W55: -100,0 | X55: 7.954545455 | Y55: 0 | Z55: 8 | AB55: -100,0 | AC55: 9.090909091 | AD55: 0
A56: 36 | B56: №23 | C56: 435 | D56: 704 | E56: 61.8 | F56: 26 | G56: 33 | H56: 26.9 | I56: 5.977011494 | J56: 4.6875 | K56: 13 | L56: 18 | M56: 38.5 | N56: 2.988505747 | O56: 2.556818182 | P56: 21 | Q56: 23 | R56: 9.5 | S56: 4.827586207 | T56: 3.267045455 | U56: 13 | V56: 18 | W56: 38.5 | X56: 2.988505747 | Y56: 2.556818182 | Z56: 21 | AA56: 23 | AB56: 9.5 | AC56: 4.827586207 | AD56: 3.267045455
A57: 37 | B57: №25 | C57: 0 | D57: 235 | E57: 0 | G57: 35 | H57: 0 | I57: 0 | J57: 14.89361702 | L57: 8 | N57: 0 | O57: 3.404255319 | Q57: 9 | R57: 0 | S57: 0 | T57: 3.829787234 | V57: 8 | X57: 0 | Y57: 3.404255319 | AA57: 9 | AB57: 0 | AC57: 0 | AD57: 3.829787234
A58: 38 | B58: №30 | C58: 49 | D58: 257 | E58: 5,2 р | F58: 1 | G58: 8 | H58: 8 р | I58: 2.040816327 | J58: 3.112840467 | K58: 1 | L58: 5 | N58: 2.040816327 | O58: 1.945525292 | P58: 1 | Q58: 3 | R58: 3 р | S58: 2.040816327 | T58: 1.167315175 | U58: 1 | V58: 5 | X58: 2.040816327 | Y58: 1.945525292 | Z58: 1 | AA58: 3 | AB58: 3 р | AC58: 2.040816327 | AD58: 1.167315175
A59: 39 | B59: Усього (без ВП) | C59: 22008 | D59: 25758 | E59: 17 | F59: 11709 | G59: 11586 | H59: -1.1 | I59: 53.20338059 | J59: 44.98020033 | K59: 452 | L59: 543 | M59: 20.1 | N59: 2.053798619 | O59: 2.108082926 | P59: 1174 | Q59: 1580 | R59: 34.6 | S59: 5.334423846 | T59: 6.134016616 | U59: 452 | V59: 543 | W59: =IF(U59=0,0,IF(V59=0,"-100,0",IF(V59*100/U59<200,ROUND(V59*100/U59-100,1),ROUND(V59/U59,1)&" р"))) -> 20.1 | X59: 2.053798619 | Y59: 2.108082926 | Z59: 1174 | AA59: 1580 | AB59: 34.6 | AC59: 5.334423846 | AD59: 6.134016616
A60: 40 | B60: Апарат ГВП | C60: 1058 | D60: 755 | E60: -28.6 | F60: 103 | G60: 66 | H60: -35.9 | I60: 9.735349716 | J60: 8.741721854 | K60: 57 | L60: 42 | M60: -26.3 | N60: 5.387523629 | O60: 5.562913907 | P60: 81 | Q60: 52 | R60: -35.8 | S60: 7.655954631 | T60: 6.887417219 | U60: 57 | V60: 42 | W60: -26.3 | X60: 5.387523629 | Y60: 5.562913907 | Z60: 81 | AA60: 52 | AB60: -35.8 | AC60: 7.655954631 | AD60: 6.887417219
A61: 41 | B61: Західного регіону | C61: 3889 | D61: 2651 | E61: -31.8 | F61: 1143 | G61: 1241 | H61: 8.6 | I61: 29.39058884 | J61: 46.81252358 | K61: 29 | L61: 32 | M61: 10.3 | N61: 0.7456929802 | O61: 1.207091664 | P61: 621 | Q61: 754 | R61: 21.4 | S61: 15.9681152 | T61: 28.44209732 | U61: 29 | V61: 32 | W61: 10.3 | X61: 0.7456929802 | Y61: 1.207091664 | Z61: 621 | AA61: 754 | AB61: 21.4 | AC61: 15.9681152 | AD61: 28.44209732
A62: 42 | B62: Південного регіону | C62: 5363 | D62: 8409 | E62: 56.8 | F62: 1966 | G62: 1773 | H62: -9.8 | I62: 36.65858661 | J62: 21.08455227 | K62: 46 | L62: 40 | M62: -13 | N62: 0.8577288831 | O62: 0.4756808182 | P62: 1340 | Q62: 1302 | R62: -2.8 | S62: 24.98601529 | T62: 15.48341063 | U62: 46 | V62: 40 | W62: -13 | X62: 0.8577288831 | Y62: 0.4756808182 | Z62: 1340 | AA62: 1302 | AB62: -2.8 | AC62: 24.98601529 | AD62: 15.48341063
A63: 43 | B63: Центрального регіону | C63: 5896 | D63: 5027 | E63: -14.7 | F63: 1463 | G63: 1354 | H63: -7.5 | I63: 24.81343284 | J63: 26.93455341 | K63: 35 | L63: 33 | M63: -5.7 | N63: 0.5936227951 | O63: 0.6564551422 | P63: 1019 | Q63: 978 | R63: -4 | S63: 17.28290366 | T63: 19.45494331 | U63: 35 | V63: 33 | W63: -5.7 | X63: 0.5936227951 | Y63: 0.6564551422 | Z63: 1019 | AA63: 978 | AB63: -4 | AC63: 17.28290366 | AD63: 19.45494331
A64: 44 | B64: Сил АТО | C64: 5156 | D64: 3459 | E64: -32.9 | F64: 1659 | G64: 1489 | H64: -10.2 | I64: 32.17610551 | J64: 43.04712345 | K64: 79 | L64: 42 | M64: -46.8 | N64: 1.5321955 | O64: 1.214223764 | P64: 1131 | Q64: 1036 | R64: -8.4 | S64: 21.935609 | T64: 29.95085285 | U64: 79 | V64: 42 | W64: -46.8 | X64: 1.5321955 | Y64: 1.214223764 | Z64: 1131 | AA64: 1036 | AB64: -8.4 | AC64: 21.935609 | AD64: 29.95085285
A65: 45 | B65: Усього по ВП | C65: 21362 | D65: 20301 | E65: -5 | F65: 6334 | G65: 5923 | H65: -6.5 | I65: 29.65078176 | J65: 29.17590266 | K65: 246 | L65: 189 | M65: -23.2 | N65: 1.151577568 | O65: 0.9309886213 | P65: 4192 | Q65: 4122 | R65: -1.7 | S65: 19.62363075 | T65: 20.3044185 | U65: 246 | V65: 189 | W65: -23.2 | X65: 1.151577568 | Y65: 0.9309886213 | Z65: 4192 | AA65: 4122 | AB65: -1.7 | AC65: 19.62363075 | AD65: 20.3044185
A66: 46 | B66: Усього по Україні | C66: 43370 | D66: 46059 | E66: 6.2 | F66: 18043 | G66: 17509 | H66: -3 | I66: 41.6024902 | J66: 38.01428602 | K66: 698 | L66: 732 | M66: 4.9 | N66: 1.609407424 | O66: 1.589265942 | P66: 5366 | Q66: 5702 | R66: 6.3 | S66: 12.37260779 | T66: 12.37977377 | U66: 698 | V66: 732 | W66: 4.9 | X66: 1.609407424 | Y66: 1.589265942 | Z66: 5366 | AA66: 5702 | AB66: 6.3 | AC66: 12.37260779 | AD66: 12.37977377
A68: Таблиця 1. Результати розслідування кримінальних правопорушень (продовження)
A70: Код | B70: Прокуратура | C70: Закінчено кримінальних проваджень (з повторно закінченими) | F70: Питома вага | H70: закінчено проваджень у строки понад 2 місяці | K70: Питома вага | M70: Направлено до суду проваджень з обвинувальним актом | P70: Питома вага
C72: =$C$20 -> 2016 | D72: =$D$20 -> 2017 | E72: % | F72: =$C$20 -> 2016 | G72: =$D$20 -> 2017 | H72: =$C$20 -> 2016 | I72: =$D$20 -> 2017 | J72: % | K72: =$C$20 -> 2016 | L72: =$D$20 -> 2017 | M72: =$C$20 -> 2016 | N72: =$D$20 -> 2017 | O72: % | P72: =$C$20 -> 2016 | Q72: =$D$20 -> 2017
A73: 1 | B73: АР Крим | C73: 23 | D73: 68 | E73: =IF(C73=0,0,IF(D73=0,"-100,0",IF(D73*100/C73<200,ROUND(D73*100/C73-100,1),ROUND(D73/C73,1)&" р"))) -> 3 р | F73: =IF(C21=0,0,C73*100/C21) -> 7.301587302 | G73: =IF(D21=0,0,D73*100/D21) -> 15.21252796 | H73: 13 | I73: 57 | J73: =IF(H73=0,0,IF(I73=0,"-100,0",IF(I73*100/H73<200,ROUND(I73*100/H73-100,1),ROUND(I73/H73,1)&" р"))) -> 4,4 р | K73: =IF(C73=0,0,H73*100/C73) -> 56.52173913 | L73: =IF(D73=0,0,I73*100/D73) -> 83.82352941 | M73: 13 | N73: 55 | O73: =IF(M73=0,0,IF(N73=0,"-100,0",IF(N73*100/M73<200,ROUND(N73*100/M73-100,1),ROUND(N73/M73,1)&" р"))) -> 4,2 р | P73: =IF(C73=0,0,M73*100/C73) -> 56.52173913 | Q73: =IF(D73=0,0,N73*100/D73) -> 80.88235294
A74: 2 | B74: Вінницької області | C74: 327 | D74: 251 | E74: -23.2 | F74: =IF(C22=0,0,C74*100/C22) -> 58.28877005 | G74: 44.98207885 | H74: 12 | I74: 4 | J74: =IF(H74=0,0,IF(I74=0,"-100,0",IF(I74*100/H74<200,ROUND(I74*100/H74-100,1),ROUND(I74/H74,1)&" р"))) -> -66.7 | K74: 3.669724771 | L74: 1.593625498 | M74: 27 | N74: 30 | O74: 11.1 | P74: 8.256880734 | Q74: 11.95219124
A75: 3 | B75: Волинської області | C75: 229 | D75: 294 | E75: 28.4 | F75: =IF(C23=0,0,C75*100/C23) -> 54.65393795 | G75: 47.19101124 | H75: 8 | I75: 8 | J75: 0 | K75: 3.493449782 | L75: 2.721088435 | M75: 31 | N75: 36 | O75: 16.1 | P75: 13.5371179 | Q75: 12.24489796
A76: 4 | B76: Дніпропетровської області | C76: 1060 | D76: 1194 | E76: 12.6 | F76: =IF(C24=0,0,C76*100/C24) -> 67.3871583 | G76: 49.2371134 | H76: 17 | I76: 30 | J76: 76.5 | K76: 1.603773585 | L76: 2.512562814 | M76: 77 | N76: 132 | O76: 71.4 | P76: 7.264150943 | Q76: 11.05527638
A77: 5 | B77: Донецької області | C77: 854 | D77: 861 | E77: 0.8 | F77: =IF(C25=0,0,C77*100/C25) -> 49.79591837 | G77: 54.39039798 | H77: 39 | I77: 35 | J77: -10.3 | K77: 4.566744731 | L77: 4.06504065 | M77: 93 | N77: 114 | O77: 22.6 | P77: 10.88992974 | Q77: 13.24041812
A78: 6 | B78: Житомирської області | C78: 175 | D78: 134 | E78: -23.4 | F78: =IF(C26=0,0,C78*100/C26) -> 56.08974359 | G78: 48.90510949 | H78: 1 | I78: 4 | J78: 4 р | K78: 0.5714285714 | L78: 2.985074627 | M78: 17 | N78: 24 | O78: 41.2 | P78: 9.714285714 | Q78: 17.91044776
A79: 7 | B79: Закарпатської області | C79: 286 | D79: 191 | E79: -33.2 | F79: =IF(C27=0,0,C79*100/C27) -> 61.37339056 | G79: 30.65810594 | H79: 1 | I79: 3 | J79: 3 р | K79: 0.3496503497 | L79: 1.570680628 | M79: 37 | N79: 39 | O79: 5.4 | P79: 12.93706294 | Q79: 20.41884817
A80: 8 | B80: Запорізької області | C80: 392 | D80: 677 | E80: 72.7 | F80: =IF(C28=0,0,C80*100/C28) -> 57.39385066 | G80: 60.28495102 | H80: 13 | I80: 21 | J80: 61.5 | K80: 3.316326531 | L80: 3.101920236 | M80: 29 | N80: 76 | O80: 2,6 р | P80: 7.397959184 | Q80: 11.22599705
A81: 9 | B81: Івано-Франківської області | C81: 126 | D81: 111 | E81: -11.9 | F81: =IF(C29=0,0,C81*100/C29) -> 45 | G81: 49.77578475 | H81: 3 | I81: 2 | J81: -33.3 | K81: 2.380952381 | L81: 1.801801802 | M81: 30 | N81: 25 | O81: -16.7 | P81: 23.80952381 | Q81: 22.52252252
A82: 10 | B82: Київської області | C82: 402 | D82: 304 | E82: -24.4 | F82: =IF(C30=0,0,C82*100/C30) -> 39.5280236 | G82: 27.99263352 | H82: 23 | I82: 14 | J82: -39.1 | K82: 5.721393035 | L82: 4.605263158 | M82: 56 | N82: 52 | O82: -7.1 | P82: 13.93034826 | Q82: 17.10526316
A83: 11 | B83: міста Києва | C83: 1675 | D83: 1318 | E83: -21.3 | F83: =IF(C31=0,0,C83*100/C31) -> 62.54667662 | G83: 51.52462862 | H83: 34 | I83: 33 | J83: -2.9 | K83: 2.029850746 | L83: 2.503793627 | M83: 77 | N83: 103 | O83: 33.8 | P83: 4.597014925 | Q83: 7.814871017
A84: 12 | B84: Кіровоградської області | C84: 272 | D84: 180 | E84: -33.8 | F84: =IF(C32=0,0,C84*100/C32) -> 58.62068966 | G84: 38.62660944 | H84: 9 | I84: 9 | J84: 0 | K84: 3.308823529 | L84: 5 | M84: 15 | N84: 19 | O84: 26.7 | P84: 5.514705882 | Q84: 10.55555556
A85: 13 | B85: Луганської області | C85: 230 | D85: 239 | E85: 3.9 | F85: =IF(C33=0,0,C85*100/C33) -> 51.4541387 | G85: 45.87332054 | H85: 1 | I85: 2 | J85: 2 р | K85: 0.4347826087 | L85: 0.8368200837 | M85: 40 | N85: 49 | O85: 22.5 | P85: 17.39130435 | Q85: 20.50209205
A86: 14 | B86: Львівської області | C86: 362 | D86: 392 | E86: 8.3 | F86: =IF(C34=0,0,C86*100/C34) -> 67.53731343 | G86: 59.57446809 | H86: 11 | I86: 10 | J86: -9.1 | K86: 3.038674033 | L86: 2.551020408 | M86: 58 | N86: 71 | O86: 22.4 | P86: 16.02209945 | Q86: 18.1122449
A87: 15 | B87: Миколаївської області | C87: 368 | D87: 295 | E87: -19.8 | F87: =IF(C35=0,0,C87*100/C35) -> 57.05426357 | G87: 51.66374781 | H87: 10 | I87: 10 | J87: 0 | K87: 2.717391304 | L87: 3.389830508 | M87: 23 | N87: 32 | O87: 39.1 | P87: 6.25 | Q87: 10.84745763
A88: 16 | B88: Одеської області | C88: 898 | D88: 1039 | E88: 15.7 | F88: =IF(C36=0,0,C88*100/C36) -> 60.30893217 | G88: 46.67565139 | H88: 34 | I88: 33 | J88: -2.9 | K88: 3.786191537 | L88: 3.176130895 | M88: 74 | N88: 78 | O88: 5.4 | P88: 8.240534521 | Q88: 7.507218479
A89: 17 | B89: Полтавської області | C89: 344 | D89: 277 | E89: -19.5 | F89: =IF(C37=0,0,C89*100/C37) -> 74.94553377 | G89: 58.07127883 | H89: 6 | I89: 8 | J89: 33.3 | K89: 1.744186047 | L89: 2.888086643 | M89: 27 | N89: 38 | O89: 40.7 | P89: 7.848837209 | Q89: 13.71841155
A90: 18 | B90: Рівненської області | C90: 213 | D90: 222 | E90: 4.2 | F90: =IF(C38=0,0,C90*100/C38) -> 61.20689655 | G90: 68.09815951 | H90: 5 | I90: 3 | J90: -40 | K90: 2.34741784 | L90: 1.351351351 | M90: 21 | N90: 22 | O90: 4.8 | P90: 9.85915493 | Q90: 9.90990991
A91: 19 | B91: Сумської області | C91: 264 | D91: 296 | E91: 12.1 | F91: =IF(C39=0,0,C91*100/C39) -> 56.53104925 | G91: 54.01459854 | H91: 8 | I91: 11 | J91: 37.5 | K91: 3.03030303 | L91: 3.716216216 | M91: 35 | N91: 46 | O91: 31.4 | P91: 13.25757576 | Q91: 15.54054054
A92: 20 | B92: Тернопільської області | C92: 195 | D92: 253 | E92: 29.7 | F92: =IF(C40=0,0,C92*100/C40) -> 65.87837838 | G92: 59.11214953 | H92: 5 | I92: 1 | J92: -80 | K92: 2.564102564 | L92: 0.395256917 | M92: 13 | N92: 20 | O92: 53.8 | P92: 6.666666667 | Q92: 7.90513834
A93: 21 | B93: Харківської області | C93: 1396 | D93: 1290 | E93: -7.6 | F93: =IF(C41=0,0,C93*100/C41) -> 66.34980989 | G93: 60.19598693 | H93: 14 | I93: 22 | J93: 57.1 | K93: 1.00286533 | L93: 1.705426357 | M93: 101 | N93: 143 | O93: 41.6 | P93: 7.23495702 | Q93: 11.08527132
A94: 22 | B94: Херсонської області | C94: 308 | D94: 305 | E94: -1 | F94: =IF(C42=0,0,C94*100/C42) -> 64.84210526 | G94: 60.15779093 | H94: 7 | I94: 9 | J94: 28.6 | K94: 2.272727273 | L94: 2.950819672 | M94: 20 | N94: 25 | O94: 25 | P94: 6.493506494 | Q94: 8.196721311
A95: 23 | B95: Хмельницької області | C95: 163 | D95: 164 | E95: 0.6 | F95: =IF(C43=0,0,C95*100/C43) -> 62.69230769 | G95: 46.45892351 | H95: 7 | I95: 6 | J95: -14.3 | K95: 4.294478528 | L95: 3.658536585 | M95: 27 | N95: 26 | O95: -3.7 | P95: 16.56441718 | Q95: 15.85365854
A96: 24 | B96: Черкаської області | C96: 316 | D96: 300 | E96: -5.1 | F96: =IF(C44=0,0,C96*100/C44) -> 72.47706422 | G96: 73.71007371 | H96: 1 | I96: 4 | J96: 4 р | K96: 0.3164556962 | L96: 1.333333333 | M96: 33 | N96: 26 | O96: -21.2 | P96: 10.44303797 | Q96: 8.666666667
A97: 25 | B97: Чернівецької області | C97: 165 | D97: 165 | E97: 0 | F97: =IF(C45=0,0,C97*100/C45) -> 49.8489426 | G97: 42.85714286 | H97: 3 | I97: 3 | J97: =IF(H97=0,0,IF(I97=0,"-100,0",IF(I97*100/H97<200,ROUND(I97*100/H97-100,1),ROUND(I97/H97,1)&" р"))) -> 0 | K97: 1.818181818 | L97: 1.818181818 | M97: 24 | N97: 24 | O97: =IF(M97=0,0,IF(N97=0,"-100,0",IF(N97*100/M97<200,ROUND(N97*100/M97-100,1),ROUND(N97/M97,1)&" р"))) -> 0 | P97: 14.54545455 | Q97: 14.54545455
A98: 26 | B98: Чернігівської області | C98: 368 | D98: 288 | E98: -21.7 | F98: =IF(C46=0,0,C98*100/C46) -> 66.7876588 | G98: 57.48502994 | H98: 9 | I98: 2 | J98: =IF(H98=0,0,IF(I98=0,"-100,0",IF(I98*100/H98<200,ROUND(I98*100/H98-100,1),ROUND(I98/H98,1)&" р"))) -> -77.8 | K98: 2.445652174 | L98: 0.6944444444 | M98: 37 | N98: 35 | O98: =IF(M98=0,0,IF(N98=0,"-100,0",IF(N98*100/M98<200,ROUND(N98*100/M98-100,1),ROUND(N98/M98,1)&" р"))) -> -5.4 | P98: 10.05434783 | Q98: 12.15277778
A99: 27 | B99: Усього (без ЦА) | C99: 11411 | D99: 11108 | E99: -2.7 | F99: =IF(C47=0,0,C99*100/C47) -> 59.04175506 | G99: 50.39927405 | H99: 294 | I99: 344 | J99: 17 | K99: 2.576461309 | L99: 3.096867123 | M99: 1035 | N99: 1340 | O99: 29.5 | P99: 9.070195425 | Q99: 12.06337775
A100: 28 | B100: Центральний апарат | C100: 298 | D100: 478 | E100: 60.4 | F100: =IF(C48=0,0,C100*100/C48) -> 11.1152555 | G100: 12.85637439 | H100: 158 | I100: 199 | J100: =IF(H100=0,0,IF(I100=0,"-100,0",IF(I100*100/H100<200,ROUND(I100*100/H100-100,1),ROUND(I100/H100,1)&" р"))) -> 25.9 | K100: 53.02013423 | L100: 41.63179916 | M100: 139 | N100: 240 | O100: =IF(M100=0,0,IF(N100=0,"-100,0",IF(N100*100/M100<200,ROUND(N100*100/M100-100,1),ROUND(N100/M100,1)&" р"))) -> 72.7 | P100: 46.6442953 | Q100: 50.20920502
A101: 29 | B101: №14 | D101: 2 | F101: =IF(C49=0,0,C101*100/C49) -> 0 | G101: 8.333333333 | N101: 2
A102: 30 | B102: №17 | C102: 178 | D102: 215 | E102: =IF(C102=0,0,IF(D102=0,"-100,0",IF(D102*100/C102<200,ROUND(D102*100/C102-100,1),ROUND(D102/C102,1)&" р"))) -> 20.8 | F102: =IF(C50=0,0,C102*100/C50) -> 13.54642314 | G102: 15.70489408 | H102: 95 | I102: 53 | J102: =IF(H102=0,0,IF(I102=0,"-100,0",IF(I102*100/H102<200,ROUND(I102*100/H102-100,1),ROUND(I102/H102,1)&" р"))) -> -44.2 | K102: =IF(C102=0,0,H102*100/C102) -> 53.37078652 | L102: =IF(D102=0,0,I102*100/D102) -> 24.65116279 | M102: 65 | N102: 72 | O102: =IF(M102=0,0,IF(N102=0,"-100,0",IF(N102*100/M102<200,ROUND(N102*100/M102-100,1),ROUND(N102/M102,1)&" р"))) -> 10.8 | P102: =IF(C102=0,0,M102*100/C102) -> 36.51685393 | Q102: 33.48837209
A103: 31 | B103: №26 | C103: 18 | D103: 104 | E103: 5,8 р | F103: =IF(C51=0,0,C103*100/C51) -> 4.411764706 | G103: 21.98731501 | H103: 16 | I103: 102 | J103: 6,4 р | K103: 88.88888889 | L103: 98.07692308 | M103: 18 | N103: 102 | O103: 5,7 р | P103: 100 | Q103: 98.07692308
A104: 32 | B104: №07 | C104: 4 | E104: -100,0 | F104: =IF(C52=0,0,C104*100/C52) -> 9.756097561 | G104: 0 | H104: 3 | J104: -100,0 | K104: 75 | L104: 0 | M104: 3 | O104: -100,0 | P104: 75 | Q104: 0
A105: 33 | B105: №07/1 | C105: 37 | D105: 81 | E105: 2,2 р | F105: =IF(C53=0,0,C105*100/C53) -> 11.59874608 | G105: 13.00160514 | H105: 21 | I105: 13 | J105: -38.1 | K105: 56.75675676 | L105: 16.04938272 | M105: 21 | N105: 29 | O105: 38.1 | Q105: =IF(D105=0,0,N105*100/D105) -> 35.80246914
A106: 34 | B106: №29 | C106: 3 | E106: -100,0 | F106: =IF(C54=0,0,C106*100/C54) -> 11.11111111 | G106: 0 | H106: 2 | J106: -100,0 | K106: 66.66666667 | L106: 0 | M106: 2 | O106: -100,0 | Q106: =IF(D106=0,0,N106*100/D106) -> 0
A107: 35 | B107: №29/1 | C107: 31 | E107: -100,0 | F107: =IF(C55=0,0,C107*100/C55) -> 35.22727273 | G107: 0 | H107: 7 | J107: -100,0 | K107: 22.58064516 | L107: 0 | M107: 8 | O107: -100,0 | Q107: =IF(D107=0,0,N107*100/D107) -> 0
A108: 36 | B108: №23 | C108: 26 | D108: 33 | E108: 26.9 | F108: =IF(C56=0,0,C108*100/C56) -> 5.977011494 | G108: 4.6875 | H108: 13 | I108: 18 | J108: 38.5 | K108: 50 | L108: 54.54545455 | M108: 21 | N108: 23 | O108: 9.5 | Q108: =IF(D108=0,0,N108*100/D108) -> 69.6969697
A109: 37 | B109: №25 | D109: 35 | E109: 0 | F109: =IF(C57=0,0,C109*100/C57) -> 0 | G109: 14.89361702 | I109: 8 | K109: 0 | L109: 22.85714286 | N109: 9 | O109: 0
A110: 38 | B110: №30 | C110: 1 | D110: 8 | E110: 8 р | F110: =IF(C58=0,0,C110*100/C58) -> 2.040816327 | G110: 3.112840467 | H110: 1 | I110: 5 | K110: 100 | L110: 62.5 | M110: 1 | N110: 3 | O110: 3 р
A111: 39 | B111: Усього (без ВП) | C111: 11709 | D111: 11586 | E111: -1.1 | F111: =IF(C59=0,0,C111*100/C59) -> 53.20338059 | G111: 44.98020033 | H111: 452 | I111: 543 | J111: =IF(H111=0,0,IF(I111=0,"-100,0",IF(I111*100/H111<200,ROUND(I111*100/H111-100,1),ROUND(I111/H111,1)&" р"))) -> 20.1 | K111: 3.860278418 | L111: 4.686690834 | M111: 1174 | N111: 1580 | O111: 34.6 | P111: =IF(C111=0,0,M111*100/C111) -> 10.02647536 | Q111: 13.63714828
A112: 40 | B112: Апарат ГВП | C112: 103 | D112: 66 | E112: -35.9 | F112: =IF(C60=0,0,C112*100/C60) -> 9.735349716 | G112: 8.741721854 | H112: 57 | I112: 42 | J112: -26.3 | K112: 55.33980583 | L112: 63.63636364 | M112: 81 | N112: 52 | O112: -35.8 | P112: 78.6407767 | Q112: 78.78787879
A113: 41 | B113: Західного регіону | C113: 1143 | D113: 1241 | E113: 8.6 | F113: =IF(C61=0,0,C113*100/C61) -> 29.39058884 | G113: 46.81252358 | H113: 29 | I113: 32 | J113: 10.3 | K113: 2.537182852 | L113: 2.578565673 | M113: 621 | N113: 754 | O113: 21.4 | P113: 54.33070866 | Q113: 60.75745367
A114: 42 | B114: Південного регіону | C114: 1966 | D114: 1773 | E114: -9.8 | F114: =IF(C62=0,0,C114*100/C62) -> 36.65858661 | G114: 21.08455227 | H114: 46 | I114: 40 | J114: -13 | K114: 2.339776195 | L114: 2.25606317 | M114: 1340 | N114: 1302 | O114: -2.8 | P114: 68.15869786 | Q114: 73.43485618
A115: 43 | B115: Центрального регіону | C115: 1463 | D115: 1354 | E115: -7.5 | F115: =IF(C63=0,0,C115*100/C63) -> 24.81343284 | G115: 26.93455341 | H115: 35 | I115: 33 | J115: -5.7 | K115: 2.392344498 | L115: 2.437223043 | M115: 1019 | N115: 978 | O115: -4 | P115: 69.65140123 | Q115: 72.23042836
A116: 44 | B116: Сил АТО | C116: 1659 | D116: 1489 | E116: -10.2 | F116: =IF(C64=0,0,C116*100/C64) -> 32.17610551 | G116: 43.04712345 | H116: 79 | I116: 42 | J116: -46.8 | K116: 4.761904762 | L116: 2.820685024 | M116: 1131 | N116: 1036 | O116: -8.4 | P116: 68.17359855 | Q116: 69.57689725
A117: 45 | B117: Усього по ВП | C117: 6334 | D117: 5923 | E117: -6.5 | F117: =IF(C65=0,0,C117*100/C65) -> 29.65078176 | G117: 29.17590266 | H117: 246 | I117: 189 | J117: -23.2 | K117: 3.883801705 | L117: 3.190950532 | M117: 4192 | N117: 4122 | O117: -1.7 | P117: 66.1825071 | Q117: 69.5931116
A118: 46 | B118: Усього по Україні | C118: 18043 | D118: 17509 | E118: -3 | F118: =IF(C66=0,0,C118*100/C66) -> 41.6024902 | G118: 38.01428602 | H118: 698 | I118: 732 | J118: 4.9 | K118: 3.868536274 | L118: 4.180707065 | M118: 5366 | N118: 5702 | O118: 6.3 | P118: 29.7400654 | Q118: 32.56610886
A120: Таблиця 2. Результати розслідування кримінальних правопорушень
A122: Код | B122: Прокуратура | C122: Направлено до суду обвинувальних актів | R122: Направлено до суду клопотань про звільнення підозрюваного від крим. відповідальності
C123: з угодою про примирення | F123: питома вага | H123: з угодою про визнання винуватості | K123: питома вага | M123: У яких здійснювалося спеціальне досудове розслідування | P123: питома вага
C124: =$C$20 -> 2016 | D124: =$D$20 -> 2017 | E124: % | F124: =$C$20 -> 2016 | G124: =$D$20 -> 2017 | H124: =$C$20 -> 2016 | I124: =$D$20 -> 2017 | J124: % | K124: =$C$20 -> 2016 | L124: =$D$20 -> 2017 | M124: =$C$20 -> 2016 | N124: =$D$20 -> 2017 | O124: % | P124: =$C$20 -> 2016 | Q124: =$D$20 -> 2017 | R124: =$C$20 -> 2016 | S124: =$D$20 -> 2017 | T124: %
A125: 1 | B125: АР Крим | E125: =IF(C125=0,0,IF(D125=0,"-100,0",IF(D125*100/C125<200,ROUND(D125*100/C125-100,1),ROUND(D125/C125,1)&" р"))) -> 0 | F125: =IF(P21=0,0,C125*100/P21) -> 0 | G125: =IF(Q21=0,0,D125*100/Q21) -> 0 | I125: 1 | J125: =IF(H125=0,0,IF(I125=0,"-100,0",IF(I125*100/H125<200,ROUND(I125*100/H125-100,1),ROUND(I125/H125,1)&" р"))) -> 0 | K125: =IF(P21=0,0,H125*100/P21) -> 0 | L125: =IF(Q21=0,0,I125*100/Q21) -> 1.818181818 | M125: 1 | N125: 1 | O125: =IF(M125=0,0,IF(N125=0,"-100,0",IF(N125*100/M125<200,ROUND(N125*100/M125-100,1),ROUND(N125/M125,1)&" р"))) -> 0 | P125: =IF(C125=0,0,M125*100/C125) -> 0 | Q125: =IF(D125=0,0,N125*100/D125) -> 0 | R125: 1 | S125: 1 | T125: =IF(R125=0,0,IF(S125=0,"-100,0",IF(S125*100/R125<200,ROUND(S125*100/R125-100,1),ROUND(S125/R125,1)&" р"))) -> 0
A126: 2 | B126: Вінницької області | E126: 0 | F126: 0 | G126: 0 | H126: 3 | I126: 9 | J126: 3 р | K126: 11.11111111 | L126: 30 | O126: 0 | P126: 0 | Q126: 0 | T126: 0
A127: 3 | B127: Волинської області | E127: 0 | F127: 0 | G127: 0 | H127: 10 | I127: 10 | J127: 0 | K127: 32.25806452 | L127: 27.77777778 | O127: 0 | P127: 0 | Q127: 0 | T127: 0
A128: 4 | B128: Дніпропетровської області | D128: 1 | E128: 0 | F128: 0 | G128: 0.7575757576 | H128: 16 | I128: 21 | J128: 31.3 | K128: 20.77922078 | L128: 15.90909091 | N128: 1 | O128: 0 | P128: 0 | Q128: 100 | S128: 1 | T128: 0
A129: 5 | B129: Донецької області | E129: 0 | F129: 0 | G129: 0 | H129: 8 | I129: 10 | J129: 25 | K129: 8.602150538 | L129: 8.771929825 | N129: 2 | O129: 0 | P129: 0 | Q129: 0 | S129: 2 | T129: 0
A130: 6 | B130: Житомирської області | C130: 1 | E130: -100,0 | F130: 5.882352941 | G130: 0 | H130: 5 | I130: 2 | J130: -60 | K130: 29.41176471 | L130: 8.333333333 | N130: 2 | O130: 0 | P130: 0 | Q130: 0 | S130: 2 | T130: 0
A131: 7 | B131: Закарпатської області | E131: 0 | F131: 0 | G131: 0 | H131: 4 | I131: 5 | J131: 25 | K131: 10.81081081 | L131: 12.82051282 | N131: 2 | O131: 0 | P131: 0 | Q131: 0 | S131: 2 | T131: 0
A132: 8 | B132: Запорізької області | C132: 2 | E132: -100,0 | F132: 6.896551724 | G132: 0 | H132: 7 | I132: 13 | J132: 85.7 | K132: 24.13793103 | L132: 17.10526316 | M132: 1 | O132: -100,0 | P132: 50 | Q132: 0 | R132: 1 | T132: -100,0
A133: 9 | B133: Івано-Франківської області | E133: 0 | F133: 0 | G133: 0 | I133: 3 | J133: 0 | K133: 0 | L133: 12 | O133: 0 | P133: 0 | Q133: 0 | T133: 0
A134: 10 | B134: Київської області | C134: 1 | D134: 1 | E134: 0 | F134: 1.785714286 | G134: 1.923076923 | H134: 11 | I134: 7 | J134: -36.4 | K134: 19.64285714 | L134: 13.46153846 | O134: 0 | P134: 0 | Q134: 0 | T134: 0
A135: 11 | B135: міста Києва | C135: 1 | D135: 4 | E135: 4 р | F135: 1.298701299 | G135: 3.883495146 | H135: 4 | I135: 16 | J135: 4 р | K135: 5.194805195 | L135: 15.53398058 | N135: 4 | O135: 0 | P135: 0 | Q135: 100 | S135: 4 | T135: 0
A136: 12 | B136: Кіровоградської області | E136: 0 | F136: 0 | G136: 0 | I136: 2 | J136: 0 | K136: 0 | L136: 10.52631579 | O136: 0 | P136: 0 | Q136: 0 | T136: 0
A137: 13 | B137: Луганської області | C137: 1 | E137: -100,0 | F137: 2.5 | G137: 0 | H137: 4 | I137: 8 | J137: 2 р | K137: 10 | L137: 16.32653061 | M137: 1 | O137: -100,0 | P137: 100 | Q137: 0 | R137: 1 | T137: -100,0
A138: 14 | B138: Львівської області | C138: 1 | E138: -100,0 | F138: 1.724137931 | G138: 0 | H138: 6 | I138: 14 | J138: 2,3 р | K138: 10.34482759 | L138: 19.71830986 | O138: 0 | P138: 0 | Q138: 0 | T138: 0
A139: 15 | B139: Миколаївської області | E139: 0 | F139: 0 | G139: 0 | H139: 7 | I139: 9 | J139: 28.6 | K139: 30.43478261 | L139: 28.125 | O139: 0 | P139: 0 | Q139: 0 | T139: 0
A140: 16 | B140: Одеської області | C140: 1 | E140: -100,0 | F140: 1.351351351 | G140: 0 | H140: 3 | I140: 5 | J140: 66.7 | K140: 4.054054054 | L140: 6.41025641 | N140: 5 | O140: 0 | P140: 0 | Q140: 0 | S140: 5 | T140: 0
A141: 17 | B141: Полтавської області | E141: 0 | F141: 0 | G141: 0 | H141: 6 | I141: 15 | J141: 2,5 р | K141: 22.22222222 | L141: 39.47368421 | O141: 0 | P141: 0 | Q141: 0 | T141: 0
A142: 18 | B142: Рівненської області | D142: 1 | E142: 0 | F142: 0 | G142: 4.545454545 | H142: 5 | I142: 10 | J142: 2 р | K142: 23.80952381 | L142: 45.45454545 | O142: 0 | P142: 0 | Q142: 0 | T142: 0
A143: 19 | B143: Сумської області | C143: 1 | E143: -100,0 | F143: 2.857142857 | G143: 0 | H143: 5 | I143: 2 | J143: -60 | K143: 14.28571429 | L143: 4.347826087 | O143: 0 | P143: 0 | Q143: 0 | T143: 0
A144: 20 | B144: Тернопільської області | E144: 0 | F144: 0 | G144: 0 | H144: 3 | I144: 5 | J144: 66.7 | K144: 23.07692308 | L144: 25 | O144: 0 | P144: 0 | Q144: 0 | T144: 0
A145: 21 | B145: Харківської області | E145: 0 | F145: 0 | G145: 0 | H145: 18 | I145: 13 | J145: -27.8 | K145: 17.82178218 | L145: 9.090909091 | O145: 0 | P145: 0 | Q145: 0 | T145: 0
A146: 22 | B146: Херсонської області | C146: 1 | D146: 1 | E146: 0 | F146: 5 | G146: 4 | H146: 4 | I146: 5 | J146: 25 | K146: 20 | L146: 20 | N146: 1 | O146: 0 | P146: 0 | Q146: 100 | S146: 1 | T146: 0
A147: 23 | B147: Хмельницької області | E147: 0 | F147: 0 | G147: 0 | I147: 4 | J147: 0 | K147: 0 | L147: 15.38461538 | O147: 0 | P147: 0 | Q147: 0 | T147: 0
A148: 24 | B148: Черкаської області | E148: 0 | F148: 0 | G148: 0 | H148: 2 | I148: 4 | J148: 2 р | K148: 6.060606061 | L148: 15.38461538 | N148: 3 | O148: 0 | P148: 0 | Q148: 0 | S148: 3 | T148: 0
A149: 25 | B149: Чернівецької області | E149: 0 | F149: 0 | G149: 0 | H149: 17 | I149: 7 | J149: -58.8 | K149: 70.83333333 | L149: 29.16666667 | O149: 0 | P149: 0 | Q149: 0 | T149: 0
A150: 26 | B150: Чернігівської області | E150: 0 | F150: 0 | G150: 0 | H150: 4 | I150: 3 | J150: -25 | K150: 10.81081081 | L150: 8.571428571 | O150: 0 | P150: 0 | Q150: 0 | T150: 0
A151: 27 | B151: Усього (без ЦА) | C151: 10 | D151: 8 | E151: -20 | F151: 0.9661835749 | G151: 0.5970149254 | H151: 152 | I151: 203 | J151: 33.6 | K151: 14.68599034 | L151: 15.14925373 | M151: 3 | N151: 21 | O151: 7 р | P151: 30 | Q151: 262.5 | R151: 3 | S151: 21 | T151: 7 р
A152: 28 | B152: Центральний апарат | C152: 1 | D152: 2 | E152: 2 р | F152: 0.7194244604 | G152: 0.8333333333 | H152: 28 | I152: 36 | J152: 28.6 | K152: 20.14388489 | L152: 15 | M152: 4 | N152: 15 | O152: 3,8 р | P152: 400 | Q152: 750 | R152: 4 | S152: 15 | T152: 3,8 р
A153: 29 | B153: №14 | I153: 2
A154: 30 | B154: №17 | C154: 1 | D154: 1 | E154: 0 | F154: =IF(P50=0,0,C154*100/P50) -> 1.538461538 | G154: 1.388888889 | H154: 11 | I154: 21 | J154: 90.9 | K154: =IF(P50=0,0,H154*100/P50) -> 16.92307692 | L154: 29.16666667 | N154: 6 | O154: 0 | P154: =IF(C154=0,0,M154*100/C154) -> 0 | Q154: 600 | S154: 6 | T154: =IF(R154=0,0,IF(S154=0,"-100,0",IF(S154*100/R154<200,ROUND(S154*100/R154-100,1),ROUND(S154/R154,1)&" р"))) -> 0
A155: 31 | B155: №26 | E155: 0 | F155: 0 | G155: 0 | H155: 2 | I155: 2 | J155: 0 | K155: 11.11111111 | L155: 1.960784314 | O155: 0 | P155: 0 | Q155: 0 | T155: 0
A156: 32 | B156: №07 | E156: 0 | F156: 0 | G156: 0 | J156: 0 | K156: 0 | L156: 0 | O156: 0 | P156: 0 | Q156: 0 | T156: 0
A157: 33 | B157: №07/1 | E157: 0 | F157: 0 | G157: 0 | H157: 11 | I157: 7 | J157: -36.4 | K157: 52.38095238 | L157: 24.13793103 | M157: 3 | N157: 2 | O157: -33.3 | Q157: =IF(D157=0,0,N157*100/D157) -> 0 | R157: 3 | S157: 2 | T157: -33.3
A158: 34 | B158: №29 | E158: 0 | F158: 0 | G158: 0 | J158: 0 | K158: 0 | L158: 0 | O158: 0 | Q158: =IF(D158=0,0,N158*100/D158) -> 0 | T158: 0
A159: 35 | B159: №29/1 | E159: 0 | F159: 0 | G159: 0 | H159: 1 | J159: -100,0 | K159: 12.5 | L159: 0 | O159: 0 | Q159: =IF(D159=0,0,N159*100/D159) -> 0 | T159: 0
A160: 36 | B160: №23 | D160: 1 | E160: 0 | F160: 0 | G160: 4.347826087 | H160: 3 | I160: 3 | J160: 0 | K160: 14.28571429 | L160: 13.04347826 | M160: 1 | N160: 3 | O160: 3 р | Q160: =IF(D160=0,0,N160*100/D160) -> 300 | R160: 1 | S160: 3 | T160: 3 р
A161: 37 | B161: №25 | I161: 1
A162: 38 | B162: №30 | N162: 4 | S162: 4
A163: 39 | B163: Усього (без ВП) | C163: 11 | D163: 10 | E163: -9.1 | F163: =IF(P59=0,0,C163*100/P59) -> 0.936967632 | G163: 0.6329113924 | H163: 180 | I163: 239 | J163: 32.8 | K163: =IF(P59=0,0,H163*100/P59) -> 15.33219761 | L163: 15.12658228 | M163: 7 | N163: 36 | O163: 5,1 р | P163: =IF(C163=0,0,M163*100/C163) -> 63.63636364 | Q163: 360 | R163: 7 | S163: 36 | T163: =IF(R163=0,0,IF(S163=0,"-100,0",IF(S163*100/R163<200,ROUND(S163*100/R163-100,1),ROUND(S163/R163,1)&" р"))) -> 5,1 р
A164: 40 | B164: Апарат ГВП | E164: 0 | F164: 0 | G164: 0 | H164: 48 | I164: 11 | J164: -77.1 | K164: 59.25925926 | L164: 21.15384615 | M164: 4 | N164: 3 | O164: -25 | P164: 0 | Q164: 0 | R164: 4 | S164: 3 | T164: -25
A165: 41 | B165: Західного регіону | D165: 1 | E165: 0 | F165: 0 | G165: 0.1326259947 | H165: 102 | I165: 212 | J165: 2,1 р | K165: 16.42512077 | L165: 28.11671088 | M165: 5 | N165: 16 | O165: 3,2 р | P165: 0 | Q165: 1600 | R165: 5 | S165: 16 | T165: 3,2 р
A166: 42 | B166: Південного регіону | C166: 3 | D166: 1 | E166: -66.7 | F166: 0.223880597 | G166: 0.07680491551 | H166: 156 | I166: 85 | J166: -45.5 | K166: 11.64179104 | L166: 6.528417819 | M166: 24 | N166: 2 | O166: -91.7 | P166: 800 | Q166: 200 | R166: 24 | S166: 2 | T166: -91.7
A167: 43 | B167: Центрального регіону | E167: 0 | F167: 0 | G167: 0 | H167: 35 | I167: 15 | J167: -57.1 | K167: 3.434739941 | L167: 1.533742331 | M167: 15 | N167: 13 | O167: -13.3 | P167: 0 | Q167: 0 | R167: 15 | S167: 13 | T167: -13.3
A168: 44 | B168: Сил АТО | C168: 2 | D168: 1 | E168: -50 | F168: 0.1768346596 | G168: 0.09652509653 | H168: 289 | I168: 146 | J168: -49.5 | K168: 25.55260831 | L168: 14.09266409 | N168: 5 | O168: 0 | P168: 0 | Q168: 500 | S168: 5 | T168: 0
A169: 45 | B169: Усього по ВП | C169: 5 | D169: 3 | E169: -40 | F169: 0.1192748092 | G169: 0.07278020378 | H169: 630 | I169: 469 | J169: -25.6 | K169: 15.02862595 | L169: 11.37797186 | M169: 48 | N169: 39 | O169: -18.8 | P169: 960 | Q169: 1300 | R169: 48 | S169: 39 | T169: -18.8
A170: 46 | B170: Усього по Україні | C170: 16 | D170: 13 | E170: -18.8 | F170: 0.2981736862 | G170: 0.2279901789 | H170: 810 | I170: 708 | J170: -12.6 | K170: 15.09504286 | L170: 12.4166959 | M170: 55 | N170: 75 | O170: 36.4 | P170: 343.75 | Q170: 576.9230769 | R170: 55 | S170: 75 | T170: 36.4
A172: Таблиця 3. Результати розслідування кримінальних правопорушень
A174: Код | B174: Прокуратура | C174: Закрито кримінальних проваджень | F174: з них: | I174: Питома вага | K174: Зупинено кримінальних проваджень | N174: Направлено кримінальних проваджень за підслідністю | Q174: Приєднано кримінальних проваджень до інших проваджень
F175: закрито прокурором
C176: =$C$20 -> 2016 | D176: =$D$20 -> 2017 | E176: % | F176: =$C$20 -> 2016 | G176: =$D$20 -> 2017 | H176: % | I176: =$C$20 -> 2016 | J176: =$D$20 -> 2017 | K176: =$C$20 -> 2016 | L176: =$D$20 -> 2017 | M176: % | N176: =$C$20 -> 2016 | O176: =$D$20 -> 2017 | P176: % | Q176: =$C$20 -> 2016 | R176: =$D$20 -> 2017 | S176: %
A177: 1 | B177: АР Крим | C177: 9 | D177: 12 | E177: =IF(C177=0,0,IF(D177=0,"-100,0",IF(D177*100/C177<200,ROUND(D177*100/C177-100,1),ROUND(D177/C177,1)&" р"))) -> 33.3 | G177: 2 | H177: =IF(F177=0,0,IF(G177=0,"-100,0",IF(G177*100/F177<200,ROUND(G177*100/F177-100,1),ROUND(G177/F177,1)&" р"))) -> 0 | I177: =IF(C177=0,0,F177*100/C177) -> 0 | J177: =IF(D177=0,0,G177*100/D177) -> 16.66666667 | K177: 223 | L177: 270 | M177: =IF(K177=0,0,IF(L177=0,"-100,0",IF(L177*100/K177<200,ROUND(L177*100/K177-100,1),ROUND(L177/K177,1)&" р"))) -> 21.1 | N177: 15 | O177: 11 | P177: =IF(N177=0,0,IF(O177=0,"-100,0",IF(O177*100/N177<200,ROUND(O177*100/N177-100,1),ROUND(O177/N177,1)&" р"))) -> -26.7 | Q177: 23 | R177: 21 | S177: =IF(Q177=0,0,IF(R177=0,"-100,0",IF(R177*100/Q177<200,ROUND(R177*100/Q177-100,1),ROUND(R177/Q177,1)&" р"))) -> -8.7
A178: 2 | B178: Вінницької області | C178: 300 | D178: 221 | E178: =IF(C178=0,0,IF(D178=0,"-100,0",IF(D178*100/C178<200,ROUND(D178*100/C178-100,1),ROUND(D178/C178,1)&" р"))) -> -26.3 | G178: 1 | H178: 0 | I178: =IF(C178=0,0,F178*100/C178) -> 0 | J178: =IF(D178=0,0,G178*100/D178) -> 0.4524886878 | K178: 2 | L178: 7 | M178: 3,5 р | N178: 26 | O178: 35 | P178: 34.6 | Q178: 112 | R178: 114 | S178: 1.8
A179: 3 | B179: Волинської області | C179: 198 | D179: 258 | E179: 30.3 | H179: 0 | I179: 0 | J179: 0 | K179: 1 | L179: 4 | M179: 4 р | N179: 39 | O179: 48 | P179: 23.1 | Q179: 99 | R179: 189 | S179: 90.9
A180: 4 | B180: Дніпропетровської області | C180: 983 | D180: 1061 | E180: 7.9 | F180: 6 | G180: 2 | H180: -66.7 | I180: 0.6103763988 | J180: 0.1885014138 | K180: 33 | L180: 28 | M180: -15.2 | N180: 37 | O180: 149 | P180: 4 р | Q180: 215 | R180: 466 | S180: 2,2 р
A181: 5 | B181: Донецької області | C181: 761 | D181: 745 | E181: -2.1 | F181: 1 | H181: -100,0 | I181: 0.1314060447 | J181: 0 | K181: 45 | L181: 82 | M181: 82.2 | N181: 121 | O181: 65 | P181: -46.3 | Q181: 504 | R181: 231 | S181: -54.2
A182: 6 | B182: Житомирської області | C182: 158 | D182: 108 | E182: -31.6 | F182: 1 | G182: 3 | H182: 3 р | I182: 0.6329113924 | J182: 2.777777778 | K182: 8 | L182: 1 | M182: -87.5 | N182: 16 | O182: 9 | P182: -43.8 | Q182: 59 | R182: 56 | S182: -5.1
A183: 7 | B183: Закарпатської області | C183: 249 | D183: 150 | E183: -39.8 | F183: 2 | G183: 1 | H183: -50 | I183: 0.8032128514 | J183: 0.6666666667 | K183: 13 | L183: 36 | M183: 2,8 р | N183: 64 | O183: 61 | P183: -4.7 | Q183: 40 | R183: 100 | S183: 2,5 р
A184: 8 | B184: Запорізької області | C184: 362 | D184: 601 | E184: 66 | G184: 2 | H184: 0 | I184: 0 | J184: 0.3327787022 | K184: 1 | L184: 33 | M184: 33 р | N184: 33 | O184: 116 | P184: 3,5 р | Q184: 29 | R184: 120 | S184: 4,1 р
A185: 9 | B185: Івано-Франківської області | C185: 96 | D185: 86 | E185: -10.4 | H185: 0 | I185: 0 | J185: 0 | K185: 2 | L185: 1 | M185: -50 | N185: 38 | O185: 28 | P185: -26.3 | Q185: 53 | R185: 32 | S185: -39.6
A186: 10 | B186: Київської області | C186: 346 | D186: 252 | E186: -27.2 | G186: 1 | H186: 0 | I186: 0 | J186: 0.3968253968 | K186: 12 | L186: 4 | M186: -66.7 | N186: 124 | O186: 81 | P186: -34.7 | Q186: 161 | R186: 139 | S186: -13.7
A187: 11 | B187: міста Києва | C187: 1598 | D187: 1211 | E187: -24.2 | F187: 4 | G187: 3 | H187: -25 | I187: 0.2503128911 | J187: 0.2477291495 | K187: 51 | L187: 40 | M187: -21.6 | N187: 226 | O187: 107 | P187: -52.7 | Q187: 381 | R187: 467 | S187: 22.6
A188: 12 | B188: Кіровоградської області | C188: 257 | D188: 161 | E188: -37.4 | F188: 1 | G188: 2 | H188: 2 р | I188: 0.3891050584 | J188: 1.242236025 | K188: 6 | L188: 3 | M188: -50 | N188: 28 | O188: 20 | P188: -28.6 | Q188: 82 | R188: 113 | S188: 37.8
A189: 13 | B189: Луганської області | C189: 189 | D189: 190 | E189: 0.5 | H189: 0 | I189: 0 | J189: 0 | K189: 16 | L189: 22 | M189: 37.5 | N189: 33 | O189: 43 | P189: 30.3 | Q189: 89 | R189: 121 | S189: 36
A190: 14 | B190: Львівської області | C190: 304 | D190: 321 | E190: 5.6 | F190: 1 | G190: 4 | H190: 4 р | I190: 0.3289473684 | J190: 1.246105919 | K190: 7 | L190: 12 | M190: 71.4 | N190: 30 | O190: 35 | P190: 16.7 | Q190: 82 | R190: 87 | S190: 6.1
A191: 15 | B191: Миколаївської області | C191: 345 | D191: 263 | E191: -23.8 | G191: 1 | H191: 0 | I191: 0 | J191: 0.3802281369 | K191: 4 | L191: 6 | M191: 50 | N191: 35 | O191: 60 | P191: 71.4 | Q191: 71 | R191: 50 | S191: -29.6
A192: 16 | B192: Одеської області | C192: 824 | D192: 956 | E192: 16 | F192: 2 | G192: 1 | H192: -50 | I192: 0.2427184466 | J192: 0.1046025105 | K192: 26 | L192: 19 | M192: -26.9 | N192: 70 | O192: 46 | P192: -34.3 | Q192: 224 | R192: 399 | S192: 78.1
A193: 17 | B193: Полтавської області | C193: 316 | D193: 239 | E193: -24.4 | G193: 1 | H193: 0 | I193: 0 | J193: 0.4184100418 | K193: 8 | L193: 2 | M193: -75 | N193: 22 | O193: 53 | P193: 2,4 р | Q193: 16 | R193: 37 | S193: 2,3 р
A194: 18 | B194: Рівненської області | C194: 192 | D194: 200 | E194: 4.2 | F194: 2 | G194: 2 | H194: 0 | I194: 1.041666667 | J194: 1 | K194: 1 | L194: 1 | M194: 0 | N194: 34 | O194: 21 | P194: -38.2 | Q194: 61 | R194: 26 | S194: -57.4
A195: 19 | B195: Сумської області | C195: 229 | D195: 250 | E195: 9.2 | H195: 0 | I195: 0 | J195: 0 | K195: 11 | L195: 11 | M195: 0 | N195: 66 | O195: 44 | P195: -33.3 | Q195: 50 | R195: 39 | S195: -22
A196: 20 | B196: Тернопільської області | C196: 182 | D196: 233 | E196: 28 | F196: 5 | G196: 2 | H196: -60 | I196: 2.747252747 | J196: 0.8583690987 | M196: 0 | N196: 15 | O196: 33 | P196: 2,2 р | Q196: 33 | R196: 37 | S196: 12.1
A197: 21 | B197: Харківської області | C197: 1295 | D197: 1147 | E197: -11.4 | F197: 2 | G197: 1 | H197: -50 | I197: 0.1544401544 | J197: 0.08718395815 | K197: 26 | L197: 37 | M197: 42.3 | N197: 107 | O197: 48 | P197: -55.1 | Q197: 262 | R197: 330 | S197: 26
A198: 22 | B198: Херсонської області | C198: 288 | D198: 279 | E198: -3.1 | F198: 3 | H198: -100,0 | I198: 1.041666667 | J198: 0 | K198: 5 | L198: 4 | M198: -20 | N198: 42 | O198: 52 | P198: 23.8 | Q198: 49 | R198: 39 | S198: -20.4
A199: 23 | B199: Хмельницької області | C199: 136 | D199: 138 | E199: 1.5 | G199: 1 | H199: 0 | I199: 0 | J199: 0.7246376812 | K199: 6 | L199: 4 | M199: -33.3 | N199: 9 | O199: 28 | P199: 3,1 р | Q199: 17 | R199: 38 | S199: 2,2 р
A200: 24 | B200: Черкаської області | C200: 283 | D200: 271 | E200: -4.2 | G200: 1 | H200: 0 | I200: 0 | J200: 0.36900369 | K200: 10 | L200: 5 | M200: -50 | N200: 20 | O200: 23 | P200: 15 | Q200: 8 | R200: 3 | S200: -62.5
A201: 25 | B201: Чернівецької області | C201: 141 | D201: 141 | E201: 0 | F201: 3 | H201: -100,0 | I201: 2.127659574 | J201: 0 | K201: 1 | L201: 1 | M201: 0 | N201: 16 | O201: 28 | P201: 75 | Q201: 68 | R201: 71 | S201: 4.4
A202: 26 | B202: Чернігівської області | C202: 331 | D202: 253 | E202: -23.6 | H202: 0 | I202: 0 | J202: 0 | K202: 13 | L202: 2 | M202: -84.6 | N202: 16 | O202: 25 | P202: 56.3 | Q202: 65 | R202: 97 | S202: 49.2
A203: 27 | B203: Усього (без ЦА) | C203: 10372 | D203: 9747 | E203: -6 | F203: 33 | G203: 31 | H203: -6.1 | I203: 0.3181642885 | J203: 0.3180465784 | K203: 531 | L203: 635 | M203: 19.6 | N203: 1282 | O203: 1269 | P203: -1 | Q203: 2853 | R203: 3422 | S203: 19.9
A204: 28 | B204: Центральний апарат | C204: 155 | D204: 223 | E204: 43.9 | F204: 3 | G204: 9 | H204: 3 р | I204: 1.935483871 | J204: 4.035874439 | K204: 419 | L204: 300 | M204: -28.4 | N204: 508 | O204: 510 | P204: 0.4 | Q204: 908 | R204: 1534 | S204: 68.9
A205: 29 | B205: №14 | L205: 2 | O205: 1 | R205: 16
A206: 30 | B206: №17 | C206: 113 | D206: 137 | E206: 21.2 | F206: 2 | G206: 1 | H206: -50 | I206: 1.769911504 | J206: 0.7299270073 | K206: 55 | L206: 67 | M206: 21.8 | N206: 307 | O206: 140 | P206: -54.4 | Q206: 546 | R206: 554 | S206: 1.5
A207: 31 | B207: №26 | D207: 2 | E207: 0 | G207: 2 | H207: 0 | I207: 0 | J207: 100 | K207: 325 | L207: 149 | M207: -54.2 | N207: 15 | O207: 97 | P207: 6,5 р | Q207: 33 | R207: 85 | S207: 2,6 р
A208: 32 | B208: №07 | C208: 1 | E208: -100,0 | H208: 0 | I208: 0 | J208: 0 | M208: 0 | N208: 23 | P208: -100,0 | Q208: 14 | S208: -100,0
A209: 33 | B209: №07/1 | C209: 13 | D209: 50 | E209: 3,8 р | G209: 2 | H209: 0 | I209: 0 | J209: 4 | K209: 1 | L209: 27 | M209: 27 р | N209: 77 | O209: 104 | P209: 35.1 | Q209: 111 | R209: 220 | S209: 98.2
A210: 34 | B210: №29 | C210: 1 | E210: -100,0 | H210: 0 | I210: 0 | J210: 0 | M210: 0 | N210: 23 | P210: -100,0 | Q210: 1 | S210: -100,0
A211: 35 | B211: №29/1 | C211: 23 | E211: -100,0 | H211: 0 | I211: 0 | J211: 0 | K211: 1 | M211: -100,0 | N211: 13 | O211: 33 | P211: 2,5 р | Q211: 10 | S211: -100,0
A212: 36 | B212: №23 | C212: 4 | D212: 7 | E212: 75 | F212: 1 | G212: 4 | H212: 4 р | I212: 25 | J212: 57.14285714 | K212: 25 | L212: 29 | M212: 16 | N212: 48 | O212: 64 | P212: 33.3 | Q212: 181 | R212: 490 | S212: 2,7 р
A213: 37 | B213: №25 | D213: 26 | L213: 2 | O213: 31 | R213: 36
A214: 38 | B214: №30 | D214: 1 | K214: 12 | L214: 24 | N214: 2 | O214: 40 | Q214: 12 | R214: 133
A215: 39 | B215: Усього (без ВП) | C215: 10527 | D215: 9970 | E215: -5.3 | F215: 36 | G215: 40 | H215: 11.1 | I215: 0.3419777714 | J215: 0.4012036108 | K215: 950 | L215: 935 | M215: -1.6 | N215: 1790 | O215: 1779 | P215: -0.6 | Q215: 3761 | R215: 4956 | S215: 31.8
A216: 40 | B216: Апарат ГВП | C216: 18 | D216: 11 | E216: -38.9 | F216: 1 | H216: -100,0 | I216: 5.555555556 | J216: 0 | K216: 56 | L216: 87 | M216: 55.4 | N216: 74 | O216: 63 | P216: -14.9 | Q216: 731 | R216: 478 | S216: -34.6
... 1099 more rows

Sheet Довідки1 (hidden)
A1: ДОВІДКА
A2: про слідчу роботу
A3: в органах прокуратури України (Усього без ВП)
A4: =Довідки!$A$10 -> 0
E6: Рядок | F6: =Довідки!C20 -> 2016 | G6: =Довідки!D20 -> 2017 | H6: Дин. %
A7: а | E7: б | F7: 1 | G7: 2 | H7: 3
A8: Знаходилось кримінальних проваджень | E8: 1 | F8: 22008 | G8: 25758 | H8: =IF(F8=0,0,IF(G8=0,"-100,0",IF(G8*100/F8<200,ROUND(G8*100/F8-100,1),ROUND(G8/F8,1)&" р"))) -> 17
A9: Закінчено кримінальних проваджень (з повторно закінченими) | E9: 2 | F9: 11709 | G9: 11586 | H9: =IF(F9=0,0,IF(G9=0,"-100,0",IF(G9*100/F9<200,ROUND(G9*100/F9-100,1),ROUND(G9/F9,1)&" р"))) -> -1.1
A10: з них: | B10: закінчено кримінальних проваджень у строки понад 2 місяці | E10: 3 | F10: 452 | G10: 543 | H10: =IF(F10=0,0,IF(G10=0,"-100,0",IF(G10*100/F10<200,ROUND(G10*100/F10-100,1),ROUND(G10/F10,1)&" р"))) -> 20.1
B11: питома вага закінчених кримінальних проваджень у строки понад 2 місяці | E11: 4 | F11: =IF($F$9=0,0,F10*100/$F$9) -> 3.860278418 | G11: =IF($G$9=0,0,G10*100/$G$9) -> 4.686690834
B12: направлено до суду проваджень з обвинувальним актом | E12: 5 | F12: 1174 | G12: 1580 | H12: =IF(F12=0,0,IF(G12=0,"-100,0",IF(G12*100/F12<200,ROUND(G12*100/F12-100,1),ROUND(G12/F12,1)&" р"))) -> 34.6
B13: питома вага направлених до суду проваджень до числа закінчених | E13: 6 | F13: =IF($F$9=0,0,F12*100/$F$9) -> 10.02647536 | G13: =IF($G$9=0,0,G12*100/$G$9) -> 13.63714828
B14: у т.ч.: | C14: у яких здійснювалося спеціальне досудове розслідування | E14: 7 | F14: 11 | G14: 10 | H14: =IF(F14=0,0,IF(G14=0,"-100,0",IF(G14*100/F14<200,ROUND(G14*100/F14-100,1),ROUND(G14/F14,1)&" р"))) -> -9.1
C15: з угодою про примирення | E15: 8 | F15: 11 | G15: 10 | H15: -9.1
C16: з угодою про визнання винуватості | E16: 9 | F16: 180 | G16: 239 | H16: 32.8
B17: направлено до суду клопотань про звільнення підозрюваного від кримінальної відповідальності | E17: 10 | F17: 7 | G17: 36 | H17: 5,1 р
B18: закрито кримінальних проваджень із числа закінчених | E18: 11 | F18: 10527 | G18: 9970 | H18: -5.3
B19: з них: | C19: закрито прокурором | E19: 12 | F19: 36 | G19: 40 | H19: 11.1
B20: питома вага | E20: 13 | F20: =IF(F18=0,0,F19*100/F18) -> 0.3419777714 | G20: =IF(G18=0,0,G19*100/G18) -> 0.4012036108
A21: Закінчено кримінальних проваджень (без повторно закінчених) | E21: 14 | F21: 9468 | G21: 9661 | H21: =IF(F21=0,0,IF(G21=0,"-100,0",IF(G21*100/F21<200,ROUND(G21*100/F21-100,1),ROUND(G21/F21,1)&" р"))) -> 2
A22: з них: | B22: направлено до суду кримінальних проваджень з обвинувальним актом | E22: 15 | F22: 1124 | G22: 1526 | H22: =IF(F22=0,0,IF(G22=0,"-100,0",IF(G22*100/F22<200,ROUND(G22*100/F22-100,1),ROUND(G22/F22,1)&" р"))) -> 35.8
B23: питома вага до числа закінчених проваджень (без повторних) | E23: 16 | F23: =IF($F$21=0,0,F22*100/$F$21) -> 11.87156738 | G23: =IF($G$21=0,0,G22*100/$G$21) -> 15.79546631
B24: закрито кримінальних проваджень (без повторних) | E24: 17 | F24: 8338 | G24: 8119 | H24: =IF(F24=0,0,IF(G24=0,"-100,0",IF(G24*100/F24<200,ROUND(G24*100/F24-100,1),ROUND(G24/F24,1)&" р"))) -> -2.6
B25: питома вага до числа закінчених проваджень (без повторних) | E25: 18 | F25: =IF($F$21=0,0,F24*100/$F$21) -> 88.06506126 | G25: =IF($G$21=0,0,G24*100/$G$21) -> 84.03891937
B26: закрито кримінальних проваджень за п.п. 1-3 ч. 1 ст.284 КПК | E26: 19 | F26: 8327 | G26: 8107 | H26: =IF(F26=0,0,IF(G26=0,"-100,0",IF(G26*100/F26<200,ROUND(G26*100/F26-100,1),ROUND(G26/F26,1)&" р"))) -> -2.6
B27: питома вага закритих проваджень до закінчених | E27: 20 | F27: =IF($F$21=0,0,F26*100/$F$21) -> 87.94888044 | G27: =IF($G$21=0,0,G26*100/$G$21) -> 83.91470862
A28: Затримано осіб у порядку, передбаченому ст.ст. 207, 208 КПК України | E28: 21 | F28: 570 | G28: 723 | H28: =IF(F28=0,0,IF(G28=0,"-100,0",IF(G28*100/F28<200,ROUND(G28*100/F28-100,1),ROUND(G28/F28,1)&" р"))) -> 26.8
A29: Усього звільнено осіб | E29: 22 | F29: 250 | G29: 420 | H29: =IF(F29=0,0,IF(G29=0,"-100,0",IF(G29*100/F29<200,ROUND(G29*100/F29-100,1),ROUND(G29/F29,1)&" р"))) -> 68
A30: Питома вага звільнених осіб до числа затриманих | E30: 23 | F30: =IF(F28=0,0,F29*100/F28) -> 43.85964912 | G30: =IF(G28=0,0,G29*100/G28) -> 58.09128631
A31: Звільнено осіб за непідтвердженням підозри у вчиненні злочину | E31: 24 | F31: 2 | G31: 2 | H31: =IF(F31=0,0,IF(G31=0,"-100,0",IF(G31*100/F31<200,ROUND(G31*100/F31-100,1),ROUND(G31/F31,1)&" р"))) -> 0
A32: Кількість підозрюваних осіб, стосовно яких кримінальне провадження закрито прокурором на підставі п.п. 1-3 ч.1 ст. 284 КПК України | E32: 25 | F32: 39 | G32: 43 | H32: 10.3
A33: з них: | B33: трималися під вартою | E33: 26 | F33: 5 | G33: 1 | H33: -80
B34: перебували під домашнім арештом | E34: 27 | F34: 2 | G34: 1 | H34: -50
A35: Кількість обвинувачених та підозрюваних, стосовно яких провадження закрито за реабілітуючими підставами (за к/справами, розслідуваними до 20.11.2012) | E35: 28 | F35: 12 | G35: 12 | H35: =IF(F35=0,0,IF(G35=0,"-100,0",IF(G35*100/F35<200,ROUND(G35*100/F35-100,1),ROUND(G35/F35,1)&" р"))) -> 0
A36: з них: | B36: трималися під вартою | E36: 29 | F36: 1 | G36: 0 | H36: =IF(F36=0,0,IF(G36=0,"-100,0",IF(G36*100/F36<200,ROUND(G36*100/F36-100,1),ROUND(G36/F36,1)&" р"))) -> -100,0
A37: Кількість виправданих осіб судами | E37: 30 | F37: 39 | G37: 48 | H37: 23.1
A38: з них: | B38: трималися під вартою | E38: 31 | F38: 2 | G38: 11 | H38: 5,5 р
B39: перебували під домашнім арештом | E39: 32 | F39: 6 | G39: 2 | H39: -66.7
A40: Кількість виправданих і осіб, стосовно яких справи закриті судом за відсутністю події або складу злочину і за недоведеністю обвинувачення (за кримінальними справами, направленими до суду до 20.11.2012) | E40: 33 | F40: 18 | G40: 14 | H40: -22.2
A41: з них: | B41: трималися під вартою | E41: 34 | F41: 0 | G41: 0 | H41: 0
A42: Кількість осіб, стосовно яких провадження закриті судом у зв’язку з відмовою прокурора від підтримання державного обвинувачення | E42: 35 | F42: 0 | G42: 4 | H42: 0
A43: з них: | B43: трималися під вартою | E43: 36 | F43: 0 | G43: 0 | H43: =IF(F43=0,0,IF(G43=0,"-100,0",IF(G43*100/F43<200,ROUND(G43*100/F43-100,1),ROUND(G43/F43,1)&" р"))) -> 0
B44: перебували під домашнім арештом | E44: 37 | F44: 0 | G44: 1 | H44: =IF(F44=0,0,IF(G44=0,"-100,0",IF(G44*100/F44<200,ROUND(G44*100/F44-100,1),ROUND(G44/F44,1)&" р"))) -> 0
A45: Кількість осіб, стосовно яких кримінальні справи закриті судом у зв’язку з відмовою прокурора від підтримання державного обвинувачення (за кримінальними справами, направленими до суду до 20.11.2012) | E45: 38 | F45: 1 | G45: 3 | H45: =IF(F45=0,0,IF(G45=0,"-100,0",IF(G45*100/F45<200,ROUND(G45*100/F45-100,1),ROUND(G45/F45,1)&" р"))) -> 3 р
A46: з них: | B46: трималися під вартою | E46: 39 | F46: 0 | G46: 0 | H46: =IF(F46=0,0,IF(G46=0,"-100,0",IF(G46*100/F46<200,ROUND(G46*100/F46-100,1),ROUND(G46/F46,1)&" р"))) -> 0
A47: Усього надійшло кримінальних проваджень із судів | E47: 40 | F47: =SUM(F49:F52) -> 83 | G47: =SUM(G49:G52) -> 89 | H47: 7.2
A48: Питома вага | E48: 41 | F48: =IF(F22=0,0,F47*100/F22) -> 7.384341637 | G48: =IF(G22=0,0,G47*100/G22) -> 5.832241153
A49: з них: | B49: обвинувальних актів (п.3 ч. 3 ст. 314 КПК) | E49: 42 | F49: 66 | G49: 68 | H49: 3
B50: клопотань про застосування примусових заходів медичного характеру (п.3 ч. 3 ст. 314 КПК) | E50: 43 | F50: 0 | G50: 0 | H50: 0
B51: клопотань про звільнення особи від кримінальної відповідальності (п. 4 ст. 288 КПК) | E51: 44 | F51: 1 | G51: 5 | H51: 5 р
B52: проваджень на підставі п. 1 ч. 3 ст. 314, п.2 ч.2 ст. 407 КПК | E52: 45 | F52: 16 | G52: 16 | H52: 0
A53: Залишок незакінчених кримінальних проваджень | E53: 46 | F53: 3798 | G53: 6508 | H53: =IF(F53=0,0,IF(G53=0,"-100,0",IF(G53*100/F53<200,ROUND(G53*100/F53-100,1),ROUND(G53/F53,1)&" р"))) -> 71.4
A54: Установлено збитків за закінченими кримінальними провадженнями (у тис. грн.) | E54: 47 | F54: 1059763 | G54: 6095118 | H54: =IF(F54=0,0,IF(G54=0,"-100,0",IF(G54*100/F54<200,ROUND(G54*100/F54-100,1),ROUND(G54/F54,1)&" р"))) -> 5,8 р
A55: Відшкодовано збитків за закінченими кримінальними провадженнями (у тис. грн.) | E55: 48 | F55: 266724 | G55: 310529 | H55: =IF(F55=0,0,IF(G55=0,"-100,0",IF(G55*100/F55<200,ROUND(G55*100/F55-100,1),ROUND(G55/F55,1)&" р"))) -> 16.4
A56: Питома вага відшкодування (%) | E56: 49 | F56: =IF(F54=0,0,F55*100/F54) -> 25.16826875 | G56: =IF(G54=0,0,G55*100/G54) -> 5.094716788
A57: Відшкодовано збитків заподіяних інтересам держави та територіальних громад (у тис. грн.) | E57: 50 | F57: 136004 | G57: 296741 | H57: =IF(F57=0,0,IF(G57=0,"-100,0",IF(G57*100/F57<200,ROUND(G57*100/F57-100,1),ROUND(G57/F57,1)&" р"))) -> 2,2 р
A58: Відшкодовано збитків про земельні правовідносини (у тис. грн.) | E58: 51 | F58: 0 | G58: 1504 | H58: =IF(F58=0,0,IF(G58=0,"-100,0",IF(G58*100/F58<200,ROUND(G58*100/F58-100,1),ROUND(G58/F58,1)&" р"))) -> 0
A59: Крим. правопорушення, вчинені особами посади яких згідно зі ч.1 ст. 9 Закону України «Про державну службу» та посади яких відповідно до цього Закону віднесено до 1-2 категорії (крім працівників правоохоронних органів) | D59: направлено до суду | E59: 52 | F59: 6 | G59: 7 | H59: =IF(F59=0,0,IF(G59=0,"-100,0",IF(G59*100/F59<200,ROUND(G59*100/F59-100,1),ROUND(G59/F59,1)&" р"))) -> 16.7
D60: закрито за п.п. 1-3 ч. 1 ст.284 КПК | E60: 53 | F60: 16 | G60: 27 | H60: 68.8
A61: з них: | B61: У сфері службової діяльності | D61: направлено до суду | E61: 54 | F61: 6 | G61: 5 | H61: -16.7
D62: закрито за п.п. 1-3 ч. 1 ст.284 КПК | E62: 55 | F62: 10 | G62: 10 | H62: 0
B63: у т.ч.: | C63: зловживання владою або службовим становищем (ст. 364) | D63: направлено до суду | E63: 56 | F63: 1 | G63: 0 | H63: =IF(F63=0,0,IF(G63=0,"-100,0",IF(G63*100/F63<200,ROUND(G63*100/F63-100,1),ROUND(G63/F63,1)&" р"))) -> -100,0
D64: закрито за п.п. 1-3 ч. 1 ст.284 КПК | E64: 57 | F64: 1 | G64: 2 | H64: 2 р
C65: службова недбалість (ст. 367) | D65: направлено до суду | E65: 58 | F65: 0 | G65: 1 | H65: 0
D66: закрито за п.п. 1-3 ч. 1 ст.284 КПК | E66: 59 | F66: 2 | G66: 3 | H66: 50
C67: злочини щодо хабарництва (ст.ст. 368-370) | D67: направлено до суду | E67: 60 | F67: 3 | G67: 1 | H67: -66.7
D68: закрито за п.п. 1-3 ч. 1 ст.284 КПК | E68: 61 | F68: 2 | G68: 1 | H68: -50
A69: Крим. правопорушення, вчинені особами посади яких згідно зі ст. 25 Закону України «Про державну службу» віднесено до 3 категорії посад (крім працівників правоох. органів та суддів) | D69: направлено до суду | E69: 62 | F69: 8 | G69: 14 | H69: =IF(F69=0,0,IF(G69=0,"-100,0",IF(G69*100/F69<200,ROUND(G69*100/F69-100,1),ROUND(G69/F69,1)&" р"))) -> 75
D70: закрито за п.п. 1-3 ч. 1 ст.284 КПК | E70: 63 | F70: 20 | G70: 20 | H70: 0
A71: з них: | B71: У сфері службової діяльності | D71: направлено до суду | E71: 64 | F71: 7 | G71: 14 | H71: 2 р
D72: закрито за п.п. 1-3 ч. 1 ст.284 КПК | E72: 65 | F72: 16 | G72: 16 | H72: 0
B73: у т.ч.: | C73: зловживання владою або службовим становищем (ст. 364) | D73: направлено до суду | E73: 66 | F73: 0 | G73: 2 | H73: 0
D74: закрито за п.п. 1-3 ч. 1 ст.284 КПК | E74: 67 | F74: 3 | G74: 3 | H74: 0
C75: службова недбалість (ст. 367) | D75: направлено до суду | E75: 68 | F75: 0 | G75: 0 | H75: =IF(F75=0,0,IF(G75=0,"-100,0",IF(G75*100/F75<200,ROUND(G75*100/F75-100,1),ROUND(G75/F75,1)&" р"))) -> 0
D76: закрито за п.п. 1-3 ч. 1 ст.284 КПК | E76: 69 | F76: 1 | G76: 2 | H76: 2 р
C77: злочини щодо хабарництва (ст.ст. 368-370) | D77: направлено до суду | E77: 70 | F77: 5 | G77: 8 | H77: 60
D78: закрито за п.п. 1-3 ч. 1 ст.284 КПК | E78: 71 | F78: 3 | G78: 3 | H78: 0
A79: Кримінальні правопорушення, вчинені працівниками правоохоронних органів | D79: направлено до суду | E79: 72 | F79: 841 | G79: 889 | H79: 5.7
D80: закрито за п.п. 1-3 ч. 1 ст.284 КПК | E80: 73 | F80: 7495 | G80: 6756 | H80: -9.9
A81: з них: | B81: У сфері службової діяльності | D81: направлено до суду | E81: 74 | F81: 608 | G81: 600 | H81: -1.3
D82: закрито за п.п. 1-3 ч. 1 ст.284 КПК | E82: 75 | F82: 6517 | G82: 5998 | H82: -8
B83: у т.ч.: | C83: органів внутрішніх справ | D83: направлено до суду | E83: 76 | F83: 500 | G83: 524 | H83: 4.8
D84: закрито за п.п. 1-3 ч. 1 ст.284 КПК | E84: 77 | F84: 5619 | G84: 4904 | H84: -12.7
C85: у т.ч. Національної гвардії | D85: направлено до суду | E85: 78 | F85: 4 | G85: 2 | H85: =IF(F85=0,0,IF(G85=0,"-100,0",IF(G85*100/F85<200,ROUND(G85*100/F85-100,1),ROUND(G85/F85,1)&" р"))) -> -50
D86: закрито за п.п. 1-3 ч. 1 ст.284 КПК | E86: 79 | F86: 7 | G86: 0 | H86: -100,0
C87: органів прокуратури | D87: направлено до суду | E87: 80 | F87: 23 | G87: 31 | H87: 34.8
D88: закрито за п.п. 1-3 ч. 1 ст.284 КПК | E88: 81 | F88: 745 | G88: 733 | H88: -1.6
C89: Служби безпеки України | D89: направлено до суду | E89: 82 | F89: 3 | G89: 1 | H89: -66.7
D90: закрито за п.п. 1-3 ч. 1 ст.284 КПК | E90: 83 | F90: 41 | G90: 51 | H90: 24.4
C91: Державної податкової служби | D91: направлено до суду | E91: 84 | F91: 82 | G91: 78 | H91: -4.9
D92: закрито за п.п. 1-3 ч. 1 ст.284 КПК | E92: 85 | F92: 504 | G92: 465 | H92: -7.7
C93: митної служби | D93: направлено до суду | E93: 86 | F93: 52 | G93: 65 | H93: 25
D94: закрито за п.п. 1-3 ч. 1 ст.284 КПК | E94: 87 | F94: 211 | G94: 141 | H94: -33.2
C95: працівниками пенітенціарної системи | D95: направлено до суду | E95: 88 | F95: 53 | G95: 49 | H95: -7.5
D96: закрито за п.п. 1-3 ч. 1 ст.284 КПК | E96: 89 | F96: 199 | G96: 238 | H96: 19.6
C97: прикордонниками | D97: направлено до суду | E97: 90 | F97: 11 | G97: 3 | H97: =IF(F97=0,0,IF(G97=0,"-100,0",IF(G97*100/F97<200,ROUND(G97*100/F97-100,1),ROUND(G97/F97,1)&" р"))) -> -72.7
D98: закрито за п.п. 1-3 ч. 1 ст.284 КПК | E98: 91 | F98: 5 | G98: 3 | H98: =IF(F98=0,0,IF(G98=0,"-100,0",IF(G98*100/F98<200,ROUND(G98*100/F98-100,1),ROUND(G98/F98,1)&" р"))) -> -40
A99: Кримінальні правопорушення, вчинені суддями | D99: направлено до суду | E99: 92 | F99: 35 | G99: 124 | H99: =IF(F99=0,0,IF(G99=0,"-100,0",IF(G99*100/F99<200,ROUND(G99*100/F99-100,1),ROUND(G99/F99,1)&" р"))) -> 3,5 р
D100: закрито за п.п. 1-3 ч. 1 ст.284 КПК | E100: 93 | F100: 367 | G100: 332 | H100: -9.5
A101: з них: | B101: У сфері здійснення правосуддя | D101: направлено до суду | E101: 94 | F101: 15 | G101: 11 | H101: -26.7
D102: закрито за п.п. 1-3 ч. 1 ст.284 КПК | E102: 95 | F102: 358 | G102: 316 | H102: -11.7
B103: у т.ч.: | C103: постановлення завідомо неправосудного вироку, рішення або ухвали (ст.375) | D103: направлено до суду | E103: 96 | F103: 8 | G103: 5 | H103: -37.5
D104: закрито за п.п. 1-3 ч. 1 ст.284 КПК | E104: 97 | F104: 278 | G104: 225 | H104: -19.1
C105: злочини щодо хабарництва (ст.ст. 368-370) | D105: направлено до суду | E105: 98 | F105: 7 | G105: 4 | H105: -42.9
D106: закрито за п.п. 1-3 ч. 1 ст.284 КПК | E106: 99 | F106: 23 | G106: 15 | H106: -34.8
C107: інші крим. правопор., вчинені у сфері служб. діяльності щодо здійснення правосуддя | D107: направлено до суду | E107: 100 | F107: 0 | G107: 2 | H107: 0
D108: закрито за п.п. 1-3 ч. 1 ст.284 КПК | E108: 101 | F108: 57 | G108: 76 | H108: 33.3
A109: Направлено до суду кримінальних проваджень про корупційні правопорушення | E109: 102 | F109: 507 | G109: 590 | H109: =IF(F109=0,0,IF(G109=0,"-100,0",IF(G109*100/F109<200,ROUND(G109*100/F109-100,1),ROUND(G109/F109,1)&" р"))) -> 16.4
A110: Питома вага до всіх направлених до суду з обвинувальним висновком | E110: 103 | F110: =IF($F$22=0,0,F109*100/$F$22) -> 45.10676157 | G110: =IF($G$22=0,0,G109*100/$G$22) -> 38.66317169
A111: Притягнуто до відповідальності осіб (про корупційні правопорушення) | E111: 104 | F111: 624 | G111: 749 | H111: =IF(F111=0,0,IF(G111=0,"-100,0",IF(G111*100/F111<200,ROUND(G111*100/F111-100,1),ROUND(G111/F111,1)&" р"))) -> 20
A112: Направлено до суду кримінальних проваджень про правопорушення, вчинені ОГ та ЗО | E112: 105 | F112: 12 | G112: 21 | H112: =IF(F112=0,0,IF(G112=0,"-100,0",IF(G112*100/F112<200,ROUND(G112*100/F112-100,1),ROUND(G112/F112,1)&" р"))) -> 75
A113: Направлено до суду кримінальних проваджень про правопорушення, вчинені у сфері земельних правовідносин | E113: 106 | F113: 22 | G113: 40 | H113: =IF(F113=0,0,IF(G113=0,"-100,0",IF(G113*100/F113<200,ROUND(G113*100/F113-100,1),ROUND(G113/F113,1)&" р"))) -> 81.8
A114: Направлено до суду кримінальних проваджень про правопорушення, вчинені у бюджетній системі | E114: 107 | F114: 34 | G114: 49 | H114: =IF(F114=0,0,IF(G114=0,"-100,0",IF(G114*100/F114<200,ROUND(G114*100/F114-100,1),ROUND(G114/F114,1)&" р"))) -> 44.1

Sheet Довідки2 (hidden)
A1: ДОВІДКА
A2: про слідчу роботу
A3: в органах прокуратури України (Усього по Україні)
A4: =Довідки!$A$10 -> 0
E6: Рядок | F6: =Довідки!C20 -> 2016 | G6: =Довідки!D20 -> 2017 | H6: Дин. %
A7: а | E7: б | F7: 1 | G7: 2 | H7: 3
A8: Знаходилось кримінальних проваджень | E8: 1 | F8: 43370 | G8: 46059 | H8: =IF(F8=0,0,IF(G8=0,"-100,0",IF(G8*100/F8<200,ROUND(G8*100/F8-100,1),ROUND(G8/F8,1)&" р"))) -> 6.2
A9: Закінчено кримінальних проваджень (з повторно закінченими) | E9: 2 | F9: 18043 | G9: 17509 | H9: =IF(F9=0,0,IF(G9=0,"-100,0",IF(G9*100/F9<200,ROUND(G9*100/F9-100,1),ROUND(G9/F9,1)&" р"))) -> -3
A10: з них: | B10: закінчено кримінальних проваджень у строки понад 2 місяці | E10: 3 | F10: 698 | G10: 732 | H10: =IF(F10=0,0,IF(G10=0,"-100,0",IF(G10*100/F10<200,ROUND(G10*100/F10-100,1),ROUND(G10/F10,1)&" р"))) -> 4.9
B11: питома вага закінчених кримінальних проваджень у строки понад 2 місяці | E11: 4 | F11: =IF($F$9=0,0,F10*100/$F$9) -> 3.868536274 | G11: =IF($G$9=0,0,G10*100/$G$9) -> 4.180707065
B12: направлено до суду проваджень з обвинувальним актом | E12: 5 | F12: 5366 | G12: 5702 | H12: =IF(F12=0,0,IF(G12=0,"-100,0",IF(G12*100/F12<200,ROUND(G12*100/F12-100,1),ROUND(G12/F12,1)&" р"))) -> 6.3
B13: питома вага направлених до суду проваджень до числа закінчених | E13: 6 | F13: =IF($F$9=0,0,F12*100/$F$9) -> 29.7400654 | G13: =IF($G$9=0,0,G12*100/$G$9) -> 32.56610886
B14: у т.ч.: | C14: у яких здійснювалося спеціальне досудове розслідування | E14: 7 | F14: 16 | G14: 13 | H14: =IF(F14=0,0,IF(G14=0,"-100,0",IF(G14*100/F14<200,ROUND(G14*100/F14-100,1),ROUND(G14/F14,1)&" р"))) -> -18.8
C15: з угодою про примирення | E15: 8 | F15: 16 | G15: 13 | H15: -18.8
C16: з угодою про визнання винуватості | E16: 9 | F16: 810 | G16: 708 | H16: -12.6
B17: направлено до суду клопотань про звільнення підозрюваного від кримінальної відповідальності | E17: 10 | F17: 55 | G17: 75 | H17: 36.4
B18: закрито кримінальних проваджень із числа закінчених | E18: 11 | F18: 12618 | G18: 11731 | H18: -7
B19: з них: | C19: закрито прокурором | E19: 12 | F19: 257 | G19: 264 | H19: 2.7
B20: питома вага | E20: 13 | F20: =IF(F18=0,0,F19*100/F18) -> 2.036772864 | G20: =IF(G18=0,0,G19*100/G18) -> 2.250447532
A21: Закінчено кримінальних проваджень (без повторно закінчених) | E21: 14 | F21: 15579 | G21: 15329 | H21: =IF(F21=0,0,IF(G21=0,"-100,0",IF(G21*100/F21<200,ROUND(G21*100/F21-100,1),ROUND(G21/F21,1)&" р"))) -> -1.6
A22: з них: | B22: направлено до суду кримінальних проваджень з обвинувальним актом | E22: 15 | F22: 5262 | G22: 5635 | H22: =IF(F22=0,0,IF(G22=0,"-100,0",IF(G22*100/F22<200,ROUND(G22*100/F22-100,1),ROUND(G22/F22,1)&" р"))) -> 7.1
B23: питома вага до числа закінчених проваджень (без повторних) | E23: 16 | F23: =IF($F$21=0,0,F22*100/$F$21) -> 33.77623724 | G23: =IF($G$21=0,0,G22*100/$G$21) -> 36.76038881
B24: закрито кримінальних проваджень (без повторних) | E24: 17 | F24: 10265 | G24: 9645 | H24: =IF(F24=0,0,IF(G24=0,"-100,0",IF(G24*100/F24<200,ROUND(G24*100/F24-100,1),ROUND(G24/F24,1)&" р"))) -> -6
B25: питома вага до числа закінчених проваджень (без повторних) | E25: 18 | F25: =IF($F$21=0,0,F24*100/$F$21) -> 65.8899801 | G25: =IF($G$21=0,0,G24*100/$G$21) -> 62.91995564
B26: закрито кримінальних проваджень за п.п. 1-3 ч. 1 ст.284 КПК | E26: 19 | F26: 10181 | G26: 9565 | H26: =IF(F26=0,0,IF(G26=0,"-100,0",IF(G26*100/F26<200,ROUND(G26*100/F26-100,1),ROUND(G26/F26,1)&" р"))) -> -6.1
B27: питома вага закритих проваджень до закінчених | E27: 20 | F27: =IF($F$21=0,0,F26*100/$F$21) -> 65.35079273 | G27: =IF($G$21=0,0,G26*100/$G$21) -> 62.39806902
A28: Затримано осіб у порядку, передбаченому ст.ст. 207, 208 КПК України | E28: 21 | F28: 1015 | G28: 1068 | H28: =IF(F28=0,0,IF(G28=0,"-100,0",IF(G28*100/F28<200,ROUND(G28*100/F28-100,1),ROUND(G28/F28,1)&" р"))) -> 5.2
A29: Усього звільнено осіб | E29: 22 | F29: 451 | G29: 573 | H29: =IF(F29=0,0,IF(G29=0,"-100,0",IF(G29*100/F29<200,ROUND(G29*100/F29-100,1),ROUND(G29/F29,1)&" р"))) -> 27.1
A30: Питома вага звільнених осіб до числа затриманих | E30: 23 | F30: =IF(F28=0,0,F29*100/F28) -> 44.43349754 | G30: =IF(G28=0,0,G29*100/G28) -> 53.65168539
A31: Звільнено осіб за непідтвердженням підозри у вчиненні злочину | E31: 24 | F31: 2 | G31: 2 | H31: =IF(F31=0,0,IF(G31=0,"-100,0",IF(G31*100/F31<200,ROUND(G31*100/F31-100,1),ROUND(G31/F31,1)&" р"))) -> 0
A32: Кількість підозрюваних осіб, стосовно яких кримінальне провадження закрито прокурором на підставі п.п. 1-3 ч.1 ст. 284 КПК України | E32: 25 | F32: 47 | G32: 55 | H32: 17
A33: з них: | B33: трималися під вартою | E33: 26 | F33: 6 | G33: 9 | H33: 50
B34: перебували під домашнім арештом | E34: 27 | F34: 5 | G34: 2 | H34: -60
A35: Кількість обвинувачених та підозрюваних, стосовно яких провадження закрито за реабілітуючими підставами (за к/справами, розслідуваними до 20.11.2012) | E35: 28 | F35: 12 | G35: 12 | H35: =IF(F35=0,0,IF(G35=0,"-100,0",IF(G35*100/F35<200,ROUND(G35*100/F35-100,1),ROUND(G35/F35,1)&" р"))) -> 0
A36: з них: | B36: трималися під вартою | E36: 29 | F36: 1 | G36: 0 | H36: =IF(F36=0,0,IF(G36=0,"-100,0",IF(G36*100/F36<200,ROUND(G36*100/F36-100,1),ROUND(G36/F36,1)&" р"))) -> -100,0
A37: Кількість виправданих осіб судами | E37: 30 | F37: 42 | G37: 51 | H37: 21.4
A38: з них: | B38: трималися під вартою | E38: 31 | F38: 2 | G38: 14 | H38: 7 р
B39: перебували під домашнім арештом | E39: 32 | F39: 6 | G39: 2 | H39: -66.7
A40: Кількість виправданих і осіб, стосовно яких справи закриті судом за відсутністю події або складу злочину і за недоведеністю обвинувачення (за кримінальними справами, направленими до суду до 20.11.2012) | E40: 33 | F40: 18 | G40: 14 | H40: -22.2
A41: з них: | B41: трималися під вартою | E41: 34 | F41: 0 | G41: 0 | H41: 0
A42: Кількість осіб, стосовно яких провадження закриті судом у зв’язку з відмовою прокурора від підтримання державного обвинувачення | E42: 35 | F42: 1 | G42: 5 | H42: 5 р
A43: з них: | B43: трималися під вартою | E43: 36 | F43: 0 | G43: 0 | H43: =IF(F43=0,0,IF(G43=0,"-100,0",IF(G43*100/F43<200,ROUND(G43*100/F43-100,1),ROUND(G43/F43,1)&" р"))) -> 0
B44: перебували під домашнім арештом | E44: 37 | F44: 0 | G44: 1 | H44: =IF(F44=0,0,IF(G44=0,"-100,0",IF(G44*100/F44<200,ROUND(G44*100/F44-100,1),ROUND(G44/F44,1)&" р"))) -> 0
A45: Кількість осіб, стосовно яких кримінальні справи закриті судом у зв’язку з відмовою прокурора від підтримання державного обвинувачення (за кримінальними справами, направленими до суду до 20.11.2012) | E45: 38 | F45: 1 | G45: 3 | H45: =IF(F45=0,0,IF(G45=0,"-100,0",IF(G45*100/F45<200,ROUND(G45*100/F45-100,1),ROUND(G45/F45,1)&" р"))) -> 3 р
A46: з них: | B46: трималися під вартою | E46: 39 | F46: 0 | G46: 0 | H46: =IF(F46=0,0,IF(G46=0,"-100,0",IF(G46*100/F46<200,ROUND(G46*100/F46-100,1),ROUND(G46/F46,1)&" р"))) -> 0
A47: Усього надійшло кримінальних проваджень із судів | E47: 40 | F47: =SUM(F49:F52) -> 158 | G47: =SUM(G49:G52) -> 146 | H47: -7.6
A48: Питома вага | E48: 41 | F48: =IF(F22=0,0,F47*100/F22) -> 3.002660585 | G48: =IF(G22=0,0,G47*100/G22) -> 2.590949423
A49: з них: | B49: обвинувальних актів (п.3 ч. 3 ст. 314 КПК) | E49: 42 | F49: 120 | G49: 92 | H49: -23.3
B50: клопотань про застосування примусових заходів медичного характеру (п.3 ч. 3 ст. 314 КПК) | E50: 43 | F50: 0 | G50: 1 | H50: 0
B51: клопотань про звільнення особи від кримінальної відповідальності (п. 4 ст. 288 КПК) | E51: 44 | F51: 5 | G51: 9 | H51: 80
B52: проваджень на підставі п. 1 ч. 3 ст. 314, п.2 ч.2 ст. 407 КПК | E52: 45 | F52: 33 | G52: 44 | H52: 33.3
A53: Залишок незакінчених кримінальних проваджень | E53: 46 | F53: 5409 | G53: 9229 | H53: =IF(F53=0,0,IF(G53=0,"-100,0",IF(G53*100/F53<200,ROUND(G53*100/F53-100,1),ROUND(G53/F53,1)&" р"))) -> 70.6
A54: Установлено збитків за закінченими кримінальними провадженнями (у тис. грн.) | E54: 47 | F54: 13412072 | G54: 14405066 | H54: =IF(F54=0,0,IF(G54=0,"-100,0",IF(G54*100/F54<200,ROUND(G54*100/F54-100,1),ROUND(G54/F54,1)&" р"))) -> 7.4
A55: Відшкодовано збитків за закінченими кримінальними провадженнями (у тис. грн.) | E55: 48 | F55: 559680 | G55: 340205 | H55: =IF(F55=0,0,IF(G55=0,"-100,0",IF(G55*100/F55<200,ROUND(G55*100/F55-100,1),ROUND(G55/F55,1)&" р"))) -> -39.2
A56: Питома вага відшкодування (%) | E56: 49 | F56: =IF(F54=0,0,F55*100/F54) -> 4.17295702 | G56: =IF(G54=0,0,G55*100/G54) -> 2.361703862
A57: Відшкодовано збитків заподіяних інтересам держави та територіальних громад (у тис. грн.) | E57: 50 | F57: 319182 | G57: 326382 | H57: =IF(F57=0,0,IF(G57=0,"-100,0",IF(G57*100/F57<200,ROUND(G57*100/F57-100,1),ROUND(G57/F57,1)&" р"))) -> 2.3
A58: Відшкодовано збитків про земельні правовідносини (у тис. грн.) | E58: 51 | F58: 20161 | G58: 1504 | H58: =IF(F58=0,0,IF(G58=0,"-100,0",IF(G58*100/F58<200,ROUND(G58*100/F58-100,1),ROUND(G58/F58,1)&" р"))) -> -92.5
A59: Крим. правопорушення, вчинені особами посади яких згідно зі ч.1 ст. 9 Закону України «Про державну службу» та посади яких відповідно до цього Закону віднесено до 1-2 категорії (крім працівників правоохоронних органів) | D59: направлено до суду | E59: 52 | F59: 6 | G59: 7 | H59: =IF(F59=0,0,IF(G59=0,"-100,0",IF(G59*100/F59<200,ROUND(G59*100/F59-100,1),ROUND(G59/F59,1)&" р"))) -> 16.7
D60: закрито за п.п. 1-3 ч. 1 ст.284 КПК | E60: 53 | F60: 16 | G60: 27 | H60: 68.8
A61: з них: | B61: У сфері службової діяльності | D61: направлено до суду | E61: 54 | F61: 6 | G61: 5 | H61: -16.7
D62: закрито за п.п. 1-3 ч. 1 ст.284 КПК | E62: 55 | F62: 10 | G62: 10 | H62: 0
B63: у т.ч.: | C63: зловживання владою або службовим становищем (ст. 364) | D63: направлено до суду | E63: 56 | F63: 1 | G63: 0 | H63: -100,0
D64: закрито за п.п. 1-3 ч. 1 ст.284 КПК | E64: 57 | F64: 1 | G64: 2 | H64: 2 р
C65: службова недбалість (ст. 367) | D65: направлено до суду | E65: 58 | F65: 0 | G65: 1 | H65: 0
D66: закрито за п.п. 1-3 ч. 1 ст.284 КПК | E66: 59 | F66: 2 | G66: 3 | H66: 50
C67: злочини щодо хабарництва (ст.ст. 368-370) | D67: направлено до суду | E67: 60 | F67: 3 | G67: 1 | H67: -66.7
D68: закрито за п.п. 1-3 ч. 1 ст.284 КПК | E68: 61 | F68: 2 | G68: 1 | H68: -50
A69: Крим. правопорушення, вчинені особами посади яких згідно зі ст. 25 Закону України «Про державну службу» віднесено до 3 категорії посад (крім працівників правоох. органів та суддів) | D69: направлено до суду | E69: 62 | F69: 8 | G69: 14 | H69: 75
D70: закрито за п.п. 1-3 ч. 1 ст.284 КПК | E70: 63 | F70: 20 | G70: 20 | H70: 0
A71: з них: | B71: У сфері службової діяльності | D71: направлено до суду | E71: 64 | F71: 7 | G71: 14 | H71: 2 р
D72: закрито за п.п. 1-3 ч. 1 ст.284 КПК | E72: 65 | F72: 16 | G72: 16 | H72: 0
B73: у т.ч.: | C73: зловживання владою або службовим становищем (ст. 364) | D73: направлено до суду | E73: 66 | F73: 0 | G73: 2 | H73: 0
D74: закрито за п.п. 1-3 ч. 1 ст.284 КПК | E74: 67 | F74: 3 | G74: 3 | H74: 0
C75: службова недбалість (ст. 367) | D75: направлено до суду | E75: 68 | F75: 0 | G75: 0 | H75: 0
D76: закрито за п.п. 1-3 ч. 1 ст.284 КПК | E76: 69 | F76: 1 | G76: 2 | H76: 2 р
C77: злочини щодо хабарництва (ст.ст. 368-370) | D77: направлено до суду | E77: 70 | F77: 5 | G77: 8 | H77: 60
D78: закрито за п.п. 1-3 ч. 1 ст.284 КПК | E78: 71 | F78: 3 | G78: 3 | H78: 0
A79: Кримінальні правопорушення, вчинені працівниками правоохоронних органів | D79: направлено до суду | E79: 72 | F79: 1454 | G79: 1326 | H79: -8.8
D80: закрито за п.п. 1-3 ч. 1 ст.284 КПК | E80: 73 | F80: 8139 | G80: 7241 | H80: -11
A81: з них: | B81: У сфері службової діяльності | D81: направлено до суду | E81: 74 | F81: 1221 | G81: 854 | H81: -30.1
D82: закрито за п.п. 1-3 ч. 1 ст.284 КПК | E82: 75 | F82: 7161 | G82: 6439 | H82: -10.1
B83: у т.ч.: | C83: органів внутрішніх справ | D83: направлено до суду | E83: 76 | F83: 797 | G83: 743 | H83: -6.8
D84: закрито за п.п. 1-3 ч. 1 ст.284 КПК | E84: 77 | F84: 5808 | G84: 5036 | H84: -13.3
C85: у т.ч. Національної гвардії | D85: направлено до суду | E85: 78 | F85: 247 | G85: 182 | H85: -26.3
D86: закрито за п.п. 1-3 ч. 1 ст.284 КПК | E86: 79 | F86: 157 | G86: 90 | H86: -42.7
C87: органів прокуратури | D87: направлено до суду | E87: 80 | F87: 27 | G87: 33 | H87: 22.2
D88: закрито за п.п. 1-3 ч. 1 ст.284 КПК | E88: 81 | F88: 767 | G88: 754 | H88: -1.7
C89: Служби безпеки України | D89: направлено до суду | E89: 82 | F89: 36 | G89: 24 | H89: -33.3
D90: закрито за п.п. 1-3 ч. 1 ст.284 КПК | E90: 83 | F90: 215 | G90: 185 | H90: -14
C91: Державної податкової служби | D91: направлено до суду | E91: 84 | F91: 82 | G91: 78 | H91: -4.9
D92: закрито за п.п. 1-3 ч. 1 ст.284 КПК | E92: 85 | F92: 504 | G92: 465 | H92: -7.7
C93: митної служби | D93: направлено до суду | E93: 86 | F93: 52 | G93: 65 | H93: 25
D94: закрито за п.п. 1-3 ч. 1 ст.284 КПК | E94: 87 | F94: 211 | G94: 141 | H94: -33.2
C95: працівниками пенітенціарної системи | D95: направлено до суду | E95: 88 | F95: 53 | G95: 49 | H95: -7.5
D96: закрито за п.п. 1-3 ч. 1 ст.284 КПК | E96: 89 | F96: 199 | G96: 238 | H96: 19.6
C97: прикордонниками | D97: направлено до суду | E97: 90 | F97: 198 | G97: 131 | H97: =IF(F97=0,0,IF(G97=0,"-100,0",IF(G97*100/F97<200,ROUND(G97*100/F97-100,1),ROUND(G97/F97,1)&" р"))) -> -33.8
D98: закрито за п.п. 1-3 ч. 1 ст.284 КПК | E98: 91 | F98: 199 | G98: 145 | H98: =IF(F98=0,0,IF(G98=0,"-100,0",IF(G98*100/F98<200,ROUND(G98*100/F98-100,1),ROUND(G98/F98,1)&" р"))) -> -27.1
A99: Кримінальні правопорушення, вчинені суддями | D99: направлено до суду | E99: 92 | F99: 35 | G99: 124 | H99: =IF(F99=0,0,IF(G99=0,"-100,0",IF(G99*100/F99<200,ROUND(G99*100/F99-100,1),ROUND(G99/F99,1)&" р"))) -> 3,5 р
D100: закрито за п.п. 1-3 ч. 1 ст.284 КПК | E100: 93 | F100: 367 | G100: 332 | H100: -9.5
A101: з них: | B101: У сфері здійснення правосуддя | D101: направлено до суду | E101: 94 | F101: 15 | G101: 11 | H101: -26.7
D102: закрито за п.п. 1-3 ч. 1 ст.284 КПК | E102: 95 | F102: 358 | G102: 316 | H102: -11.7
B103: у т.ч.: | C103: постановлення завідомо неправосудного вироку, рішення або ухвали (ст.375) | D103: направлено до суду | E103: 96 | F103: 8 | G103: 5 | H103: -37.5
D104: закрито за п.п. 1-3 ч. 1 ст.284 КПК | E104: 97 | F104: 278 | G104: 225 | H104: -19.1
C105: злочини щодо хабарництва (ст.ст. 368-370) | D105: направлено до суду | E105: 98 | F105: 7 | G105: 4 | H105: -42.9
D106: закрито за п.п. 1-3 ч. 1 ст.284 КПК | E106: 99 | F106: 23 | G106: 15 | H106: -34.8
C107: інші крим. правопор., вчинені у сфері служб. діяльності щодо здійснення правосуддя | D107: направлено до суду | E107: 100 | F107: 0 | G107: 2 | H107: 0
D108: закрито за п.п. 1-3 ч. 1 ст.284 КПК | E108: 101 | F108: 57 | G108: 76 | H108: 33.3
A109: Направлено до суду кримінальних проваджень про корупційні правопорушення | E109: 102 | F109: 845 | G109: 860 | H109: =IF(F109=0,0,IF(G109=0,"-100,0",IF(G109*100/F109<200,ROUND(G109*100/F109-100,1),ROUND(G109/F109,1)&" р"))) -> 1.8
A110: Питома вага до всіх направлених до суду з обвинувальним висновком | E110: 103 | F110: =IF($F$22=0,0,F109*100/$F$22) -> 16.05853288 | G110: =IF($G$22=0,0,G109*100/$G$22) -> 15.26175688
A111: Притягнуто до відповідальності осіб (про корупційні правопорушення) | E111: 104 | F111: 1017 | G111: 1058 | H111: =IF(F111=0,0,IF(G111=0,"-100,0",IF(G111*100/F111<200,ROUND(G111*100/F111-100,1),ROUND(G111/F111,1)&" р"))) -> 4
A112: Направлено до суду кримінальних проваджень про правопорушення, вчинені ОГ та ЗО | E112: 105 | F112: 21 | G112: 25 | H112: =IF(F112=0,0,IF(G112=0,"-100,0",IF(G112*100/F112<200,ROUND(G112*100/F112-100,1),ROUND(G112/F112,1)&" р"))) -> 19
A113: Направлено до суду кримінальних проваджень про правопорушення, вчинені у сфері земельних правовідносин | E113: 106 | F113: 25 | G113: 46 | H113: =IF(F113=0,0,IF(G113=0,"-100,0",IF(G113*100/F113<200,ROUND(G113*100/F113-100,1),ROUND(G113/F113,1)&" р"))) -> 84
A114: Направлено до суду кримінальних проваджень про правопорушення, вчинені у бюджетній системі | E114: 107 | F114: 65 | G114: 71 | H114: =IF(F114=0,0,IF(G114=0,"-100,0",IF(G114*100/F114<200,ROUND(G114*100/F114-100,1),ROUND(G114/F114,1)&" р"))) -> 9.2

Sheet Довідки3 (hidden)
A1: ДОВІДКА
A2: про слідчу роботу
A3: Усього по Україні
A4: за 12 місяців 2017 року
E6: Рядок | F6: 2016 | G6: 2017 | H6: Дин. % | I6: Дин. % (по Укр. без ВП)
A7: а | E7: б | F7: 1 | G7: 2 | H7: 3 | I7: 4
A8: Знаходилось кримінальних проваджень | E8: 1 | F8: 43370 | G8: 46059 | H8: =IF(F8=0,0,IF(G8=0,"-100,0",IF(G8*100/F8<200,ROUND(G8*100/F8-100,1),ROUND(G8/F8,1)&" р"))) -> 6.2 | I8: =Довідки1!H8 -> 17
A9: Закінчено кримінальних проваджень (з повторно закінченими) | E9: 2 | F9: 18043 | G9: 17509 | H9: =IF(F9=0,0,IF(G9=0,"-100,0",IF(G9*100/F9<200,ROUND(G9*100/F9-100,1),ROUND(G9/F9,1)&" р"))) -> -3 | I9: =Довідки1!H9 -> -1.1
A10: з них: | B10: закінчено кримінальних проваджень у строки понад 2 місяці | E10: 3 | F10: 698 | G10: 732 | H10: =IF(F10=0,0,IF(G10=0,"-100,0",IF(G10*100/F10<200,ROUND(G10*100/F10-100,1),ROUND(G10/F10,1)&" р"))) -> 4.9 | I10: =Довідки1!H10 -> 20.1
B11: питома вага закінчених кримінальних проваджень у строки понад 2 місяці | E11: 4 | F11: =IF($F$9=0,0,F10*100/$F$9) -> 3.868536274 | G11: =IF($G$9=0,0,G10*100/$G$9) -> 4.180707065 | I11: =Довідки1!G11 -> 4.686690834
B12: направлено до суду проваджень з обвинувальним актом | E12: 5 | F12: 5366 | G12: 5702 | H12: =IF(F12=0,0,IF(G12=0,"-100,0",IF(G12*100/F12<200,ROUND(G12*100/F12-100,1),ROUND(G12/F12,1)&" р"))) -> 6.3 | I12: =Довідки1!H12 -> 34.6
B13: питома вага направлених до суду проваджень до числа закінчених | E13: 6 | F13: =IF($F$9=0,0,F12*100/$F$9) -> 29.7400654 | G13: =IF($G$9=0,0,G12*100/$G$9) -> 32.56610886 | I13: =Довідки1!G13 -> 13.63714828
B14: у т.ч.: | C14: у яких здійснювалося спеціальне досудове розслідування | E14: 7 | F14: 16 | G14: 13 | H14: =IF(F14=0,0,IF(G14=0,"-100,0",IF(G14*100/F14<200,ROUND(G14*100/F14-100,1),ROUND(G14/F14,1)&" р"))) -> -18.8 | I14: =Довідки1!H14 -> -9.1
C15: з угодою про примирення | E15: 8 | F15: 16 | G15: 13 | H15: -18.8 | I15: =Довідки1!H15 -> -9.1
C16: з угодою про визнання винуватості | E16: 9 | F16: 810 | G16: 708 | H16: -12.6 | I16: =Довідки1!H16 -> 32.8
B17: направлено до суду клопотань про звільнення підозрюваного від кримінальної відповідальності | E17: 10 | F17: 55 | G17: 75 | H17: 36.4 | I17: =Довідки1!H17 -> 5,1 р
B18: закрито кримінальних проваджень із числа закінчених | E18: 11 | F18: 12618 | G18: 11731 | H18: -7 | I18: =Довідки1!H18 -> -5.3
B19: з них: | C19: закрито прокурором | E19: 12 | F19: 257 | G19: 264 | H19: 2.7 | I19: =Довідки1!H19 -> 11.1
B20: питома вага | E20: 13 | F20: =IF(F18=0,0,F19*100/F18) -> 2.036772864 | G20: =IF(G18=0,0,G19*100/G18) -> 2.250447532 | I20: =Довідки1!G20 -> 0.4012036108
A21: Закінчено кримінальних проваджень (без повторно закінчених) | E21: 14 | F21: 15579 | G21: 15329 | H21: =IF(F21=0,0,IF(G21=0,"-100,0",IF(G21*100/F21<200,ROUND(G21*100/F21-100,1),ROUND(G21/F21,1)&" р"))) -> -1.6 | I21: =Довідки1!H21 -> 2
A22: з них: | B22: направлено до суду кримінальних проваджень з обвинувальним актом | E22: 15 | F22: 5262 | G22: 5635 | H22: =IF(F22=0,0,IF(G22=0,"-100,0",IF(G22*100/F22<200,ROUND(G22*100/F22-100,1),ROUND(G22/F22,1)&" р"))) -> 7.1 | I22: =Довідки1!H22 -> 35.8
B23: питома вага до числа закінчених проваджень (без повторних) | E23: 16 | F23: =IF($F$21=0,0,F22*100/$F$21) -> 33.77623724 | G23: =IF($G$21=0,0,G22*100/$G$21) -> 36.76038881 | I23: =Довідки1!G23 -> 15.79546631
B24: закрито кримінальних проваджень (без повторних) | E24: 17 | F24: 10265 | G24: 9645 | H24: =IF(F24=0,0,IF(G24=0,"-100,0",IF(G24*100/F24<200,ROUND(G24*100/F24-100,1),ROUND(G24/F24,1)&" р"))) -> -6 | I24: =Довідки1!H24 -> -2.6
B25: питома вага до числа закінчених проваджень (без повторних) | E25: 18 | F25: =IF($F$21=0,0,F24*100/$F$21) -> 65.8899801 | G25: =IF($G$21=0,0,G24*100/$G$21) -> 62.91995564 | I25: =Довідки1!G25 -> 84.03891937
B26: закрито кримінальних проваджень за п.п. 1-3 ч. 1 ст.284 КПК | E26: 19 | F26: 10181 | G26: 9565 | H26: =IF(F26=0,0,IF(G26=0,"-100,0",IF(G26*100/F26<200,ROUND(G26*100/F26-100,1),ROUND(G26/F26,1)&" р"))) -> -6.1 | I26: =Довідки1!H26 -> -2.6
B27: питома вага закритих проваджень до закінчених | E27: 20 | F27: =IF($F$21=0,0,F26*100/$F$21) -> 65.35079273 | G27: =IF($G$21=0,0,G26*100/$G$21) -> 62.39806902 | I27: =Довідки1!G27 -> 83.91470862
A28: Затримано осіб у порядку, передбаченому ст.ст. 207, 208 КПК України | E28: 21 | F28: 1015 | G28: 1068 | H28: =IF(F28=0,0,IF(G28=0,"-100,0",IF(G28*100/F28<200,ROUND(G28*100/F28-100,1),ROUND(G28/F28,1)&" р"))) -> 5.2 | I28: =Довідки1!H28 -> 26.8
A29: Усього звільнено осіб | E29: 22 | F29: 451 | G29: 573 | H29: =IF(F29=0,0,IF(G29=0,"-100,0",IF(G29*100/F29<200,ROUND(G29*100/F29-100,1),ROUND(G29/F29,1)&" р"))) -> 27.1 | I29: =Довідки1!H29 -> 68
A30: Питома вага звільнених осіб до числа затриманих | E30: 23 | F30: =IF(F28=0,0,F29*100/F28) -> 44.43349754 | G30: =IF(G28=0,0,G29*100/G28) -> 53.65168539 | I30: =Довідки1!G30 -> 58.09128631
A31: Звільнено осіб за непідтвердженням підозри у вчиненні злочину | E31: 24 | F31: 2 | G31: 2 | H31: =IF(F31=0,0,IF(G31=0,"-100,0",IF(G31*100/F31<200,ROUND(G31*100/F31-100,1),ROUND(G31/F31,1)&" р"))) -> 0 | I31: =Довідки1!H31 -> 0
A32: Кількість підозрюваних осіб, стосовно яких кримінальне провадження закрито прокурором на підставі п.п. 1-3 ч.1 ст. 284 КПК України | E32: 25 | F32: 47 | G32: 55 | H32: 17 | I32: =Довідки1!H32 -> 10.3
A33: з них: | B33: трималися під вартою | E33: 26 | F33: 6 | G33: 9 | H33: 50 | I33: =Довідки1!H33 -> -80
B34: перебували під домашнім арештом | E34: 27 | F34: 5 | G34: 2 | H34: -60 | I34: =Довідки1!H34 -> -50
A35: Кількість обвинувачених та підозрюваних, стосовно яких провадження закрито за реабілітуючими підставами (за к/справами, розслідуваними до 20.11.2012) | E35: 28 | F35: 12 | G35: 12 | H35: =IF(F35=0,0,IF(G35=0,"-100,0",IF(G35*100/F35<200,ROUND(G35*100/F35-100,1),ROUND(G35/F35,1)&" р"))) -> 0 | I35: =Довідки1!H35 -> 0
A36: з них: | B36: трималися під вартою | E36: 29 | F36: 1 | G36: 0 | H36: =IF(F36=0,0,IF(G36=0,"-100,0",IF(G36*100/F36<200,ROUND(G36*100/F36-100,1),ROUND(G36/F36,1)&" р"))) -> -100,0 | I36: =Довідки1!H36 -> -100,0
A37: Кількість виправданих осіб судами | E37: 30 | F37: 42 | G37: 51 | H37: 21.4 | I37: =Довідки1!H37 -> 23.1
A38: з них: | B38: трималися під вартою | E38: 31 | F38: 2 | G38: 14 | H38: 7 р | I38: =Довідки1!H38 -> 5,5 р
B39: перебували під домашнім арештом | E39: 32 | F39: 6 | G39: 2 | H39: -66.7 | I39: =Довідки1!H39 -> -66.7
A40: Кількість виправданих і осіб, стосовно яких справи закриті судом за відсутністю події або складу злочину і за недоведеністю обвинувачення (за кримінальними справами, направленими до суду до 20.11.2012) | E40: 33 | F40: 18 | G40: 14 | H40: -22.2 | I40: =Довідки1!H40 -> -22.2
A41: з них: | B41: трималися під вартою | E41: 34 | F41: 0 | G41: 0 | H41: 0 | I41: =Довідки1!H41 -> 0
A42: Кількість осіб, стосовно яких провадження закриті судом у зв’язку з відмовою прокурора від підтримання державного обвинувачення | E42: 35 | F42: 1 | G42: 5 | H42: 5 р | I42: =Довідки1!H42 -> 0
A43: з них: | B43: трималися під вартою | E43: 36 | F43: 0 | G43: 0 | H43: =IF(F43=0,0,IF(G43=0,"-100,0",IF(G43*100/F43<200,ROUND(G43*100/F43-100,1),ROUND(G43/F43,1)&" р"))) -> 0 | I43: =Довідки1!H43 -> 0
B44: перебували під домашнім арештом | E44: 37 | F44: 0 | G44: 1 | H44: =IF(F44=0,0,IF(G44=0,"-100,0",IF(G44*100/F44<200,ROUND(G44*100/F44-100,1),ROUND(G44/F44,1)&" р"))) -> 0 | I44: =Довідки1!H44 -> 0
A45: Кількість осіб, стосовно яких кримінальні справи закриті судом у зв’язку з відмовою прокурора від підтримання державного обвинувачення (за кримінальними справами, направленими до суду до 20.11.2012) | E45: 38 | F45: 1 | G45: 3 | H45: =IF(F45=0,0,IF(G45=0,"-100,0",IF(G45*100/F45<200,ROUND(G45*100/F45-100,1),ROUND(G45/F45,1)&" р"))) -> 3 р | I45: =Довідки1!H45 -> 3 р
A46: з них: | B46: трималися під вартою | E46: 39 | F46: 0 | G46: 0 | H46: =IF(F46=0,0,IF(G46=0,"-100,0",IF(G46*100/F46<200,ROUND(G46*100/F46-100,1),ROUND(G46/F46,1)&" р"))) -> 0 | I46: =Довідки1!H46 -> 0
A47: Усього надійшло кримінальних проваджень із судів | E47: 40 | F47: =SUM(F49:F52) -> 158 | G47: =SUM(G49:G52) -> 146 | H47: -7.6 | I47: =Довідки1!H47 -> 7.2
A48: Питома вага | E48: 41 | F48: =IF(F22=0,0,F47*100/F22) -> 3.002660585 | G48: =IF(G22=0,0,G47*100/G22) -> 2.590949423 | I48: =Довідки1!G48 -> 5.832241153
A49: з них: | B49: обвинувальних актів (п.3 ч. 3 ст. 314 КПК) | E49: 42 | F49: 120 | G49: 92 | H49: -23.3 | I49: =Довідки1!H49 -> 3
B50: клопотань про застосування примусових заходів медичного характеру (п.3 ч. 3 ст. 314 КПК) | E50: 43 | F50: 0 | G50: 1 | H50: 0 | I50: =Довідки1!H50 -> 0
B51: клопотань про звільнення особи від кримінальної відповідальності (п. 4 ст. 288 КПК) | E51: 44 | F51: 5 | G51: 9 | H51: 80 | I51: =Довідки1!H51 -> 5 р
B52: проваджень на підставі п. 1 ч. 3 ст. 314, п.2 ч.2 ст. 407 КПК | E52: 45 | F52: 33 | G52: 44 | H52: 33.3 | I52: =Довідки1!H52 -> 0
A53: Залишок незакінчених кримінальних проваджень | E53: 46 | F53: 5409 | G53: 9229 | H53: =IF(F53=0,0,IF(G53=0,"-100,0",IF(G53*100/F53<200,ROUND(G53*100/F53-100,1),ROUND(G53/F53,1)&" р"))) -> 70.6 | I53: =Довідки1!H53 -> 71.4
A54: Установлено збитків за закінченими кримінальними провадженнями (у тис. грн.) | E54: 47 | F54: 13412072 | G54: 14405066 | H54: =IF(F54=0,0,IF(G54=0,"-100,0",IF(G54*100/F54<200,ROUND(G54*100/F54-100,1),ROUND(G54/F54,1)&" р"))) -> 7.4 | I54: =Довідки1!H54 -> 5,8 р
A55: Відшкодовано збитків за закінченими кримінальними провадженнями (у тис. грн.) | E55: 48 | F55: 559680 | G55: 340205 | H55: =IF(F55=0,0,IF(G55=0,"-100,0",IF(G55*100/F55<200,ROUND(G55*100/F55-100,1),ROUND(G55/F55,1)&" р"))) -> -39.2 | I55: =Довідки1!H55 -> 16.4
A56: Питома вага відшкодування (%) | E56: 49 | F56: =IF(F54=0,0,F55*100/F54) -> 4.17295702 | G56: =IF(G54=0,0,G55*100/G54) -> 2.361703862 | I56: =Довідки1!G56 -> 5.094716788
A57: Відшкодовано збитків заподіяних інтересам держави та територіальних громад (у тис. грн.) | E57: 50 | F57: 319182 | G57: 326382 | H57: =IF(F57=0,0,IF(G57=0,"-100,0",IF(G57*100/F57<200,ROUND(G57*100/F57-100,1),ROUND(G57/F57,1)&" р"))) -> 2.3 | I57: =Довідки1!H57 -> 2,2 р
A58: Відшкодовано збитків про земельні правовідносини (у тис. грн.) | E58: 51 | F58: 20161 | G58: 1504 | H58: =IF(F58=0,0,IF(G58=0,"-100,0",IF(G58*100/F58<200,ROUND(G58*100/F58-100,1),ROUND(G58/F58,1)&" р"))) -> -92.5 | I58: =Довідки1!H58 -> 0
A59: Крим. правопорушення, вчинені особами посади яких згідно зі ч.1 ст. 9 Закону України «Про державну службу» та посади яких відповідно до цього Закону віднесено до 1-2 категорії (крім працівників правоохоронних органів) | D59: направлено до суду | E59: 52 | F59: 6 | G59: 7 | H59: =IF(F59=0,0,IF(G59=0,"-100,0",IF(G59*100/F59<200,ROUND(G59*100/F59-100,1),ROUND(G59/F59,1)&" р"))) -> 16.7 | I59: =Довідки1!H59 -> 16.7
D60: закрито за п.п. 1-3 ч. 1 ст.284 КПК | E60: 53 | F60: 16 | G60: 27 | H60: 68.8 | I60: =Довідки1!H60 -> 68.8
A61: з них: | B61: У сфері службової діяльності | D61: направлено до суду | E61: 54 | F61: 6 | G61: 5 | H61: -16.7 | I61: =Довідки1!H61 -> -16.7
D62: закрито за п.п. 1-3 ч. 1 ст.284 КПК | E62: 55 | F62: 10 | G62: 10 | H62: 0 | I62: =Довідки1!H62 -> 0
B63: у т.ч.: | C63: зловживання владою або службовим становищем (ст. 364) | D63: направлено до суду | E63: 56 | F63: 1 | G63: 0 | H63: -100,0 | I63: =Довідки1!H63 -> -100,0
D64: закрито за п.п. 1-3 ч. 1 ст.284 КПК | E64: 57 | F64: 1 | G64: 2 | H64: 2 р | I64: =Довідки1!H64 -> 2 р
C65: службова недбалість (ст. 367) | D65: направлено до суду | E65: 58 | F65: 0 | G65: 1 | H65: 0 | I65: =Довідки1!H65 -> 0
D66: закрито за п.п. 1-3 ч. 1 ст.284 КПК | E66: 59 | F66: 2 | G66: 3 | H66: 50 | I66: =Довідки1!H66 -> 50
C67: злочини щодо хабарництва (ст.ст. 368-370) | D67: направлено до суду | E67: 60 | F67: 3 | G67: 1 | H67: -66.7 | I67: =Довідки1!H67 -> -66.7
D68: закрито за п.п. 1-3 ч. 1 ст.284 КПК | E68: 61 | F68: 2 | G68: 1 | H68: -50 | I68: =Довідки1!H68 -> -50
A69: Крим. правопорушення, вчинені особами посади яких згідно зі ст. 25 Закону України «Про державну службу» віднесено до 3 категорії посад (крім працівників правоох. органів та суддів) | D69: направлено до суду | E69: 62 | F69: 8 | G69: 14 | H69: 75 | I69: =Довідки1!H69 -> 75
D70: закрито за п.п. 1-3 ч. 1 ст.284 КПК | E70: 63 | F70: 20 | G70: 20 | H70: 0 | I70: =Довідки1!H70 -> 0
A71: з них: | B71: У сфері службової діяльності | D71: направлено до суду | E71: 64 | F71: 7 | G71: 14 | H71: 2 р | I71: =Довідки1!H71 -> 2 р
D72: закрито за п.п. 1-3 ч. 1 ст.284 КПК | E72: 65 | F72: 16 | G72: 16 | H72: 0 | I72: =Довідки1!H72 -> 0
B73: у т.ч.: | C73: зловживання владою або службовим становищем (ст. 364) | D73: направлено до суду | E73: 66 | F73: 0 | G73: 2 | H73: 0 | I73: =Довідки1!H73 -> 0
D74: закрито за п.п. 1-3 ч. 1 ст.284 КПК | E74: 67 | F74: 3 | G74: 3 | H74: 0 | I74: =Довідки1!H74 -> 0
C75: службова недбалість (ст. 367) | D75: направлено до суду | E75: 68 | F75: 0 | G75: 0 | H75: 0 | I75: =Довідки1!H75 -> 0
D76: закрито за п.п. 1-3 ч. 1 ст.284 КПК | E76: 69 | F76: 1 | G76: 2 | H76: 2 р | I76: =Довідки1!H76 -> 2 р
C77: злочини щодо хабарництва (ст.ст. 368-370) | D77: направлено до суду | E77: 70 | F77: 5 | G77: 8 | H77: 60 | I77: =Довідки1!H77 -> 60
D78: закрито за п.п. 1-3 ч. 1 ст.284 КПК | E78: 71 | F78: 3 | G78: 3 | H78: 0 | I78: =Довідки1!H78 -> 0
A79: Кримінальні правопорушення, вчинені працівниками правоохоронних органів | D79: направлено до суду | E79: 72 | F79: 1454 | G79: 1326 | H79: -8.8 | I79: =Довідки1!H79 -> 5.7
D80: закрито за п.п. 1-3 ч. 1 ст.284 КПК | E80: 73 | F80: 8139 | G80: 7241 | H80: -11 | I80: =Довідки1!H80 -> -9.9
A81: з них: | B81: У сфері службової діяльності | D81: направлено до суду | E81: 74 | F81: 1221 | G81: 854 | H81: -30.1 | I81: =Довідки1!H81 -> -1.3
D82: закрито за п.п. 1-3 ч. 1 ст.284 КПК | E82: 75 | F82: 7161 | G82: 6439 | H82: -10.1 | I82: =Довідки1!H82 -> -8
B83: у т.ч.: | C83: органів внутрішніх справ | D83: направлено до суду | E83: 76 | F83: 797 | G83: 743 | H83: -6.8 | I83: =Довідки1!H83 -> 4.8
D84: закрито за п.п. 1-3 ч. 1 ст.284 КПК | E84: 77 | F84: 5808 | G84: 5036 | H84: -13.3 | I84: =Довідки1!H84 -> -12.7
C85: у т.ч. Національної гвардії | D85: направлено до суду | E85: 78 | F85: 247 | G85: 182 | H85: -26.3 | I85: =Довідки1!H85 -> -50
D86: закрито за п.п. 1-3 ч. 1 ст.284 КПК | E86: 79 | F86: 157 | G86: 90 | H86: -42.7 | I86: =Довідки1!H86 -> -100,0
C87: органів прокуратури | D87: направлено до суду | E87: 80 | F87: 27 | G87: 33 | H87: 22.2 | I87: =Довідки1!H87 -> 34.8
D88: закрито за п.п. 1-3 ч. 1 ст.284 КПК | E88: 81 | F88: 767 | G88: 754 | H88: -1.7 | I88: =Довідки1!H88 -> -1.6
C89: Служби безпеки України | D89: направлено до суду | E89: 82 | F89: 36 | G89: 24 | H89: -33.3 | I89: =Довідки1!H89 -> -66.7
D90: закрито за п.п. 1-3 ч. 1 ст.284 КПК | E90: 83 | F90: 215 | G90: 185 | H90: -14 | I90: =Довідки1!H90 -> 24.4
C91: Державної податкової служби | D91: направлено до суду | E91: 84 | F91: 82 | G91: 78 | H91: -4.9 | I91: =Довідки1!H91 -> -4.9
D92: закрито за п.п. 1-3 ч. 1 ст.284 КПК | E92: 85 | F92: 504 | G92: 465 | H92: -7.7 | I92: =Довідки1!H92 -> -7.7
C93: митної служби | D93: направлено до суду | E93: 86 | F93: 52 | G93: 65 | H93: 25 | I93: =Довідки1!H93 -> 25
D94: закрито за п.п. 1-3 ч. 1 ст.284 КПК | E94: 87 | F94: 211 | G94: 141 | H94: -33.2 | I94: =Довідки1!H94 -> -33.2
C95: працівниками пенітенціарної системи | D95: направлено до суду | E95: 88 | F95: 53 | G95: 49 | H95: -7.5 | I95: =Довідки1!H95 -> -7.5
D96: закрито за п.п. 1-3 ч. 1 ст.284 КПК | E96: 89 | F96: 199 | G96: 238 | H96: 19.6 | I96: =Довідки1!H96 -> 19.6
C97: прикордонниками | D97: направлено до суду | E97: 90 | F97: 198 | G97: 131 | H97: =IF(F97=0,0,IF(G97=0,"-100,0",IF(G97*100/F97<200,ROUND(G97*100/F97-100,1),ROUND(G97/F97,1)&" р"))) -> -33.8 | I97: =Довідки1!H97 -> -72.7
D98: закрито за п.п. 1-3 ч. 1 ст.284 КПК | E98: 91 | F98: 199 | G98: 145 | H98: =IF(F98=0,0,IF(G98=0,"-100,0",IF(G98*100/F98<200,ROUND(G98*100/F98-100,1),ROUND(G98/F98,1)&" р"))) -> -27.1 | I98: =Довідки1!H98 -> -40
A99: Кримінальні правопорушення, вчинені суддями | D99: направлено до суду | E99: 92 | F99: 35 | G99: 124 | H99: =IF(F99=0,0,IF(G99=0,"-100,0",IF(G99*100/F99<200,ROUND(G99*100/F99-100,1),ROUND(G99/F99,1)&" р"))) -> 3,5 р | I99: =Довідки1!H99 -> 3,5 р
D100: закрито за п.п. 1-3 ч. 1 ст.284 КПК | E100: 93 | F100: 367 | G100: 332 | H100: -9.5 | I100: =Довідки1!H100 -> -9.5
A101: з них: | B101: У сфері здійснення правосуддя | D101: направлено до суду | E101: 94 | F101: 15 | G101: 11 | H101: -26.7 | I101: =Довідки1!H101 -> -26.7
D102: закрито за п.п. 1-3 ч. 1 ст.284 КПК | E102: 95 | F102: 358 | G102: 316 | H102: -11.7 | I102: =Довідки1!H102 -> -11.7
B103: у т.ч.: | C103: постановлення завідомо неправосудного вироку, рішення або ухвали (ст.375) | D103: направлено до суду | E103: 96 | F103: 8 | G103: 5 | H103: -37.5 | I103: =Довідки1!H103 -> -37.5
D104: закрито за п.п. 1-3 ч. 1 ст.284 КПК | E104: 97 | F104: 278 | G104: 225 | H104: -19.1 | I104: =Довідки1!H104 -> -19.1
C105: злочини щодо хабарництва (ст.ст. 368-370) | D105: направлено до суду | E105: 98 | F105: 7 | G105: 4 | H105: -42.9 | I105: =Довідки1!H105 -> -42.9
D106: закрито за п.п. 1-3 ч. 1 ст.284 КПК | E106: 99 | F106: 23 | G106: 15 | H106: -34.8 | I106: =Довідки1!H106 -> -34.8
C107: інші крим. правопор., вчинені у сфері служб. діяльності щодо здійснення правосуддя | D107: направлено до суду | E107: 100 | F107: 0 | G107: 2 | H107: 0 | I107: =Довідки1!H107 -> 0
D108: закрито за п.п. 1-3 ч. 1 ст.284 КПК | E108: 101 | F108: 57 | G108: 76 | H108: 33.3 | I108: =Довідки1!H108 -> 33.3
A109: Направлено до суду кримінальних проваджень про корупційні правопорушення | E109: 102 | F109: 845 | G109: 860 | H109: =IF(F109=0,0,IF(G109=0,"-100,0",IF(G109*100/F109<200,ROUND(G109*100/F109-100,1),ROUND(G109/F109,1)&" р"))) -> 1.8 | I109: =Довідки1!H109 -> 16.4
A110: Питома вага до всіх направлених до суду з обвинувальним висновком | E110: 103 | F110: =IF($F$22=0,0,F109*100/$F$22) -> 16.05853288 | G110: =IF($G$22=0,0,G109*100/$G$22) -> 15.26175688 | I110: =Довідки1!G110 -> 38.66317169
A111: Притягнуто до відповідальності осіб (про корупційні правопорушення) | E111: 104 | F111: 1017 | G111: 1058 | H111: =IF(F111=0,0,IF(G111=0,"-100,0",IF(G111*100/F111<200,ROUND(G111*100/F111-100,1),ROUND(G111/F111,1)&" р"))) -> 4 | I111: =Довідки1!H111 -> 20
A112: Направлено до суду кримінальних проваджень про правопорушення, вчинені ОГ та ЗО | E112: 105 | F112: 21 | G112: 25 | H112: =IF(F112=0,0,IF(G112=0,"-100,0",IF(G112*100/F112<200,ROUND(G112*100/F112-100,1),ROUND(G112/F112,1)&" р"))) -> 19 | I112: =Довідки1!H112 -> 75
A113: Направлено до суду кримінальних проваджень про правопорушення, вчинені у сфері земельних правовідносин | E113: 106 | F113: 25 | G113: 46 | H113: =IF(F113=0,0,IF(G113=0,"-100,0",IF(G113*100/F113<200,ROUND(G113*100/F113-100,1),ROUND(G113/F113,1)&" р"))) -> 84 | I113: =Довідки1!H113 -> 81.8
A114: Направлено до суду кримінальних проваджень про правопорушення, вчинені у бюджетній системі | E114: 107 | F114: 65 | G114: 71 | H114: =IF(F114=0,0,IF(G114=0,"-100,0",IF(G114*100/F114<200,ROUND(G114*100/F114-100,1),ROUND(G114/F114,1)&" р"))) -> 9.2 | I114: =Довідки1!H114 -> 44.1
